{"text_format":"1","workbook":"xlsx","n_sheets":5,"sheets":["JPK","Faktury","Faktury_wiersze","Zamówienia_wiersze","A"],"not_rendered":{"charts":0,"images":25,"macros":1,"external_links":0,"defined_names":7,"comments":0,"pivot_tables":0},"unopened":[],"bounds":{"document_bytes":16777216,"sheet_cells":100000,"rows_first":2000,"rows_last":500,"rows_between":2000,"halvings":0,"cell_chars":16384,"cell_head_chars":4096},"cells_cut":0,"cells_raw":0,"read":"whole","date_system":"1900"}

{"sheet":"JPK","index":0,"n_rows":400,"n_cols":38,"rows_kept":400,"cut":false,"hidden":false,"merged":[[12,8,12,23],[12,2,12,7],[13,2,13,23],[14,4,14,16],[14,17,14,19],[14,2,14,3],[14,20,14,23],[8,17,9,23],[10,2,10,16],[9,2,9,3],[11,2,11,3],[9,4,9,16],[11,4,11,16],[6,17,7,23],[8,2,8,16],[7,4,7,16],[38,3,38,6],[38,7,38,12],[32,3,32,6],[34,3,34,6],[36,2,36,23],[33,19,33,23],[34,19,34,23],[35,2,35,23],[37,13,37,18],[17,10,17,16],[17,17,17,19],[17,20,17,23],[10,17,11,23],[92,1,92,24],[89,1,89,24],[54,2,54,18],[37,19,37,23],[38,19,38,23],[54,19,54,22],[43,10,43,23],[37,3,37,6],[37,7,37,12],[42,3,42,9],[43,3,43,9],[42,10,42,23],[63,1,63,25],[41,2,41,23],[40,2,40,23],[25,2,25,23],[16,4,16,9],[17,4,17,9],[16,17,16,19],[24,2,24,23],[21,3,21,23],[23,2,23,23],[18,2,18,23],[17,2,17,3],[16,10,16,16],[15,2,16,3],[22,3,22,6],[15,17,15,19],[20,3,20,23],[19,3,19,23],[22,14,22,23],[0,0,0,12],[0,13,0,24],[1,1,1,24],[2,1,2,24],[3,2,3,23],[4,2,4,23],[5,2,5,23],[22,7,22,13],[16,20,16,23],[15,10,15,16],[15,4,15,9],[15,20,15,23],[6,2,6,16],[26,3,26,23],[33,7,33,18],[27,3,27,23],[29,3,29,5],[28,2,28,23],[31,3,31,6],[29,16,29,23],[32,7,32,18],[30,6,30,15],[29,6,29,15],[30,3,30,5],[30,16,30,23],[31,19,31,23],[32,19,32,23],[39,3,39,6],[39,7,39,12],[39,13,39,18],[34,7,34,18],[33,3,33,6],[31,7,31,18],[39,19,39,23],[38,13,38,18]]}
["Uruchamianie przycisków i opcji (q) wymaga włączenia makro",null,null,null,null,null,null,null,null,null,null,null,null,"Instrukcja",null,null,null,null,null,null,null,null,null,null,null,null,"URZĄD SKARBOWY W ALEKSANDROWIE KUJAWSKIM","0402",1,"POLSKA","PL","DOLNOŚLĄSKIE",1,"KodWaluty",1,"P_2B",1,"P_2AZ"]
[null,null,null,null,null,null,null,null,null,null,null,null,null,null,null,null,null,null,null,null,null,null,null,null,null,null,"URZĄD SKARBOWY W AUGUSTOWIE","2002",1,"AFGANISTAN","AF","KUJAWSKO-POMORSKIE",2,"P_1",2,"P_7",2,"P_7Z"]
[null,null,null,null,null,null,null,null,null,null,null,null,null,null,null,null,null,null,null,null,null,null,null,null,null,null,"URZĄD SKARBOWY W BARTOSZYCACH","2802",false,"ALAND ISLANDS","AX","LUBELSKIE",3,"P_2A",3,"P_8A",3,"P_8AZ"]
[null,null,"  POLA JASNE WYPEŁNIA PODATNIK, WYPEŁNIĆ KOMPUTEROWO DUŻYMI LITERAMI",null,null,null,null,null,null,null,null,null,null,null,null,null,null,null,null,null,null,null,null,null,null,null,"URZĄD SKARBOWY W BEŁCHATOWIE","1002",null,"ALBANIA","AL","LUBUSKIE",4,"P_3A",4,"P_8B",4,"P_8BZ"]
[null,null,"                 Składanie JPK wyłącznie w wersji elektronicznej",null,null,null,null,null,null,null,null,null,null,null,null,null,null,null,null,null,null,null,null,null,null,null,"URZĄD SKARBOWY W BĘDZINIE","2402",null,"ALGIERIA","DZ","ŁÓDZKIE",5,"P_3B",5,"P_9A",5,"P_9AZ"]
[null,null,null,null,null,null,null,null,null,null,null,null,null,null,null,null,null,null,null,null,null,null,null,null,null,null,"URZĄD SKARBOWY W BIAŁEJ PODLASKIEJ","0602",null,"ANDORA","AD","MAŁOPOLSKIE",6,"P_3C",6,"P_9B",6,"P_11NettoZ"]
[null,null,"1. Identyfikator podatkowy NIP",null,null,null,null,null,null,null,null,null,null,null,null,null,null,null,null,null,null,null,null,null,null,null,"URZĄD SKARBOWY W BIAŁOBRZEGACH","1402",null,"ANGOLA","AO","MAZOWIECKIE",7,"P_3D",7,"P_10",7,"P_11VatZ"]
[null,null,null,null,1111111111,null,null,null,null,null,null,null,null,null,null,null,null,null,null,null,null,null,null,null,null,null,"URZĄD SKARBOWY W BIAŁOGARDZIE","3202",null,"ANGUILLA","AI","OPOLSKIE",8,"P_4A",8,"P_11",8,"P_12Z"]
[null,null," 2. Numer identyfikacyjny VAT podatnika w procedurze nieunijnej",null,null,null,null,null,null,null,null,null,null,null,null,null,null,null,null,null,null,null,null,null,null,null,"PIERWSZY URZĄD SKARBOWY W BIAŁYMSTOKU","2003",null,"ANTARKTYDA","AQ","PODKARPACKIE",9,"P_4B",9,"P_11A",9,"P_12Z-XII"]
[null,null,"EU616  ",null,null,null,null,null,null,null,null,null,null,null,null,null,null,null,null,null,null,null,null,null,null,null,"DRUGI URZĄD SKARBOWY W BIAŁYMSTOKU","2004",null,"ANTIGUA I BARBUDA","AG","PODLASKIE",10,"P_5A",10,"P_12"]
[null,null," 3. Numer identyfikacyjny VAT podatnika w procedurze importu, nadany zgodnie z art. 138e ust. 7 pkt 1 i 2 ustawy",null,null,null,null,null,null,null,null,null,null,null,null,null,null,null,null,null,null,null,null,null,null,null,"URZĄD SKARBOWY W BIELSKU PODLASKIM","2005",null,"ANTYLE HOLENDERSKIE","AN","POMORSKIE",11,"P_5B",11,"P_12_XII"]
[null,null,"IM616  ",null,null,null,null,null,null,null,null,null,null,null,null,null,null,null,null,null,null,null,null,null,null,null,"PIERWSZY URZĄD SKARBOWY W BIELSKU-BIAŁEJ","2403",null,"ARABIA SAUDYJSKA","SA","ŚLĄSKIE",12,"P_6"]
[null,null,"  JPK_FA(4)",null,null,null,null,null,"WERSJA DEMONSTRACYJNA",null,null,null,null,null,null,null,null,null,null,null,null,null,null,null,null,null,"DRUGI URZĄD SKARBOWY W BIELSKU-BIAŁEJ","2404",null,"ARGENTYNA","AR","ŚWIĘTOKRZYSKIE",13,"P_13_1"]
[null,null,"JEDNOLITY PLIK KONTROLNY\nDLA FAKTUR",null,null,null,null,null,null,null,null,null,null,null,null,null,null,null,null,null,null,null,null,null,null,null,"DRUGI ŚLĄSKI URZĄD SKARBOWY W BIELSKU-BIAŁEJ","2472",null,"ARMENIA","AM","WARMIŃSKO-MAZURSKIE",14,"P_14_1"]
[null,null,null,null,"za okres",null,null,null,null,null,null,null,null,null,null,null,null,null,null,null,null,null,null,null,null,null,"URZĄD SKARBOWY W BIŁGORAJU","0603",null,"ARUBA","AW","WIELKOPOLSKIE",15,"P_14_1W"]
[null,null,null,null," 4. Od (dzień - miesiąc - rok)",null,null,null,null,null," 5. Do (dzień - miesiąc - rok)",null,null,null,null,null,null,null,null,null,null,null,null,null,null,null,"URZĄD SKARBOWY W BOCHNI","1202",null,"AUSTRALIA","AU","ZACHODNIOPOMORSKIE",16,"P_13_2"]
[null,null,null,null,1012022,null,null,null,null,null,31122022,null,null,null,null,null,null,null,null,null,null,null,null,null,null,null,"URZĄD SKARBOWY W BOLESŁAWCU","0202",null,"AUSTRIA","AT",null,17,"P_14_2"]
[null,null,null,null,null,null,null,null,null,null,null,null,null,null,null,null,null,null,null,null,null,null,null,null,null,null,"URZĄD SKARBOWY W BRANIEWIE","2803",null,"AZERBEJDŻAN","AZ",null,18,"P_14_2W"]
[null,null," A. MIEJSCE I CEL SKŁADANIA JPK",null,null,null,null,null,null,null,null,null,null,null,null,null,null,null,null,null,null,null,null,null,null,null,"URZĄD SKARBOWY W BRODNICY","0403",null,"BAHAMY","BS",null,19,"P_13_3"]
[null,null,null," 6. Urząd skarbowy, do którego adresowany jest JPK",null,null,null,null,null,null,null,null,null,null,null,null,null,null,null,null,null,null,null,null,null,null,"URZĄD SKARBOWY W BRZEGU","1602",null,"BAHRAJN","BH",null,20,"P_14_3"]
[null,null,null,"URZĄD SKARBOWY W JAWORZE",null,null,null,null,null,null,null,null,null,null,null,null,null,null,null,null,null,null,null,null,null,null,"URZĄD SKARBOWY W BRZESKU","1203",{"$f":"VLOOKUP(D21,AA1:AB400,2,FALSE)","v":"0206"},"BANGLADESZ","BD",null,21,"P_14_3W"]
[null,null,null," 7. Cel złożenia  (zaznaczyć właściwy kwadrat):",null,null,null,null,null,null,null,null,null,null,null,null,null,null,null,null,null,null,null,null,null,null,"URZĄD SKARBOWY W BRZEZINACH","1003",null,"BARBADOS","BB",null,22,"P_13_4"]
[null,null,null,null,null,null,null,"      1. złożenie",null,null,null,null,null,null,"2. korekty nie składa się",null,null,null,null,null,null,null,null,null,null,null,"URZĄD SKARBOWY W BRZOZOWIE","1802",null,"BELGIA","BE",null,23,"P_14_4"]
[null,null,null,null,null,null,null,null,null,null,null,null,null,null,null,null,null,null,null,null,null,null,null,null,null,null,"URZĄD SKARBOWY W BUSKU-ZDROJU","2602",null,"BELIZE","BZ",null,24,"P_14_4W"]
[null,null," B. DANE PODATNIKA",null,null,null,null,null,null,null,null,null,null,null,null,null,null,null,null,null,null,null,null,null,null,null,"PIERWSZY URZĄD SKARBOWY W BYDGOSZCZY","0404",null,"BENIN","BJ",null,25,"P_13_5"]
[null,null," B.1. DANE IDENTYFIKACYJNE",null,null,null,null,null,null,null,null,null,null,null,null,null,null,null,null,null,null,null,null,null,null,null,"DRUGI URZĄD SKARBOWY W BYDGOSZCZY","0405",null,"BERMUDY","BM",null,26,"P_14_5"]
[null,null,null," 8. Nazwa pełna",null,null,null,null,null,null,null,null,null,null,null,null,null,null,null,null,null,null,null,null,null,null,"TRZECI URZĄD SKARBOWY W BYDGOSZCZY","0406",null,"BHUTAN","BT",null,27,"P_13_6"]
[null,null,null,"SAAD",null,null,null,null,null,null,null,null,null,null,null,null,null,null,null,null,null,null,null,null,null,null,"KUJAWSKO-POMORSKI URZĄD SKARBOWY W BYDGOSZCZY","0471",null,"BIAŁORUŚ","BY",null,28,"P_13_7"]
[null,null," B.2. ADRES PODMIOTU",null,null,null,null,null,null,null,null,null,null,null,null,null,null,null,null,null,null,null,null,null,null,null,"URZĄD SKARBOWY W BYSTRZYCY KŁODZKIEJ","0203",null,"BOLIWIA","BO",null,29,"P_15"]
[null,null,null," 9. Kraj [Country]",null,null," 10. Województwo",null,null,null,null,null,null,null,null,null," 11. Powiat",null,null,null,null,null,null,null,null,null,"URZĄD SKARBOWY W BYTOMIU","2405",null,"BOŚNIA I HERCEGOWINA","BA",null,30,"P_16"]
[null,null,null,"POLSKA",null,null,"DOLNOŚLĄSKIE",null,null,null,null,null,null,null,null,null,"JAWOR",null,null,null,null,null,null,null,null,null,"URZĄD SKARBOWY W BYTOWIE","2202",{"$f":"VLOOKUP(D31,AD1:AE249,2,FALSE)","v":"PL"},"BOTSWANA","BW",null,31,"P_17"]
[null,null,null," 12. Gmina",null,null,null," 13. Ulica [Street]",null,null,null,null,null,null,null,null,null,null,null," 14. Nr domu [Building number]",null,null,null,null,null,null,"URZĄD SKARBOWY W CHEŁMIE","0604",null,"BRAZYLIA","BR",null,32,"P_18"]
[null,null,null,"JAWOR",null,null,null,"LIPNA",null,null,null,null,null,null,null,null,null,null,null,"14",null,null,null,null,null,null,"URZĄD SKARBOWY W CHEŁMNIE","0407",null,"BRUNEI DARUSSALAM","BN",null,33,"P_18A"]
[null,null,null," 15. Nr lokalu [Flat number]",null,null,null," 16. Miejscowość [Locality]",null,null,null,null,null,null,null,null,null,null,null," 17. Kod pocztowy [Postal code]",null,null,null,null,null,null,"URZĄD SKARBOWY W CHODZIEŻY","3037",null,"BRYTYJSKIE TERYTORIUM OCEANU INDYJSKIEGO","IO",null,34,"P_19"]
[null,null,null,"15",null,null,null,"JAWOR",null,null,null,null,null,null,null,null,null,null,null,"59-400",null,null,null,null,null,null,"URZĄD SKARBOWY W CHOJNICACH","2203",null,"BUŁGARIA","BG",null,35,"P_19A"]
[null,null,null,null,null,null,null,null,null,null,null,null,null,null,null,null,null,null,null,null,null,null,null,null,null,null,"URZĄD SKARBOWY W CHORZOWIE","2406",null,"BURKINA FASO","BF",null,36,"P_19B"]
[null,null," C. FAKTURY",null,null,null,null,null,null,null,null,null,null,null,null,null,null,null,null,null,null,null,null,null,null,null,"URZĄD SKARBOWY W CHOSZCZNIE","3203",null,"BURUNDI","BI",null,37,"P_19C"]
[null,null,null," 18. Liczba faktur",null,null,null,{"$f":"Faktury!A2","v":3},null,null,null,null,null," 19. Łączna wartość faktur brutto",null,null,null,null,null,{"$f":"Faktury!AC2","v":693},null,null,null,null,null,null,"URZĄD SKARBOWY W CHRZANOWIE","1204",null,"CEUTA","XC",null,38,"P_20"]
[null,null,null," 20. Liczba wierszy w fakturach",null,null,null,{"$f":"Faktury_wiersze!A2","v":3},null,null,null,null,null," 21. Wartość wierszy faktur",null,null,null,null,null,{"$f":"Faktury_wiersze!H2","v":14800},null,null,null,null,null,null,"URZĄD SKARBOWY W CIECHANOWIE","1403",null,"CHILE","CL",null,39,"P_20A"]
[null,null,null," 22. Liczba zamówień",null,null,null,3,null,null,null,null,null," 23. Wartość zamówień",null,null,null,null,null,{"$f":"Zamówienia_wiersze!F2","v":20050},null,null,null,null,null,null,"URZĄD SKARBOWY W CIESZYNIE","2407",null,"CHINY","CN",null,40,"P_20B"]
[null,null,null,null,null,null,null,null,null,null,null,null,null,null,null,null,null,null,null,null,null,null,null,null,null,null,"URZĄD SKARBOWY W CZARNKOWIE","3002",null,"CHORWACJA","HR",null,41,"P_21"]
[null,null," D. DATA SPORZĄDZENIA JPK",null,null,null,null,null,null,null,null,null,null,null,null,null,null,null,null,null,null,null,null,null,null,null,"URZĄD SKARBOWY W CZECHOWICACH-DZIEDZICACH","2408",null,"CYPR","CY",null,42,"P_21A"]
[null,null,null," 24. Data wytworzenia JPK",null,null,null,null,null,null,null,null,null,null,null,null,null,null,null,null,null,null,null,null,null,null,"PIERWSZY URZĄD SKARBOWY W CZĘSTOCHOWIE","2409",null,"CZAD","TD",null,43,"P_21B"]
[null,null,null,"2023-02-24T21:59:50",null,null,null,null,null,null,null,null,null,null,null,null,null,null,null,null,null,null,null,null,null,null,"DRUGI URZĄD SKARBOWY W CZĘSTOCHOWIE","2410",null,"CZARNOGÓRA","ME",null,44,"P_21C"]
[null,null,null,null,null,null,null,null,null,null,null,null,null,null,null,null,null,null,null,null,null,null,null,null,null,null,"URZĄD SKARBOWY W CZŁUCHOWIE","2204",null,"DANIA","DK",null,45,"P_22"]
[null,null,null,null,null,null,null,null,null,null,null,null,null,null,null,null,null,null,null,null,null,null,null,null,null,null,"URZĄD SKARBOWY W DĄBROWIE GÓRNICZEJ","2411",null,"DOMINIKA","DM",null,46,"P_22A"]
[null,null,null,null,null,null,null,null,null,null,null,null,null,null,null,null,null,null,null,null,null,null,null,null,null,null,"URZĄD SKARBOWY W DĄBROWIE TARNOWSKIEJ","1205",null,"DOMINIKANA","DO",null,47,"P_22B"]
[null,null,null,null,null,null,null,null,null,null,null,null,null,null,null,null,null,null,null,null,null,null,null,null,null,null,"URZĄD SKARBOWY W DĘBICY","1803",null,"DŻIBUTI","DJ",null,48,"P_22C"]
[null,null,null,null,null,null,null,null,null,null,null,null,null,null,null,null,null,null,null,null,null,null,null,null,null,null,"URZĄD SKARBOWY W DRAWSKU POMORSKIM","3204",null,"EGIPT","EG",null,49,"P_23"]
[null,null,null,null,null,null,null,null,null,null,null,null,null,null,null,null,null,null,null,null,null,null,null,null,null,null,"URZĄD SKARBOWY W DREZDENKU","0812",null,"EKWADOR","EC",null,50,"P_106E_2"]
[null,null,null,null,null,null,null,null,null,null,null,null,null,null,null,null,null,null,null,null,null,null,null,null,null,null,"URZĄD SKARBOWY W DZIAŁDOWIE","2804",null,"ERYTREA","ER",null,51,"P_106E_3"]
[null,null,null,null,null,null,null,null,null,null,null,null,null,null,null,null,null,null,null,null,null,null,null,null,null,null,"URZĄD SKARBOWY W DZIERŻONIOWIE","0204",null,"ESTONIA","EE",null,52,"P_106E_3A"]
[null,null,null,null,null,null,null,null,null,null,null,null,null,null,null,null,null,null,null,null,null,null,null,null,null,null,"URZĄD SKARBOWY W ELBLĄGU","2805",null,"ETIOPIA","ET",null,53,"RodzajFaktury"]
[null,null,null,null,null,null,null,null,null,null,null,null,null,null,null,null,null,null,null,null,null,null,null,null,null,null,"URZĄD SKARBOWY W EŁKU","2806",null,"FALKLANDY","FK",null,54,"PrzyczynaKorekty"]
[null,null,null,null,null,null,null,null,null,null,null,null,null,null,null,null,null,null,null,"JPK_FA(4)",null,null,null,"1/1",null,null,"URZĄD SKARBOWY W GARWOLINIE","1404",null,"FIDŻI REPUBLIKA","FJ",null,55,"NrFaKorygowanej"]
[null,null,null,null,null,null,null,null,null,null,null,null,null,null,null,null,null,null,null,null,null,null,null,null,null,null,"PIERWSZY URZĄD SKARBOWY W GDAŃSKU","2205",null,"FILIPINY","PH",null,56,"OkresFaKorygowanej"]
[null,null,null,null,null,null,null,null,null,null,null,null,null,null,null,null,null,null,null,null,null,null,null,null,null,null,"DRUGI URZĄD SKARBOWY W GDAŃSKU","2206",null,"FINLANDIA","FI",null,57,"NrFaZaliczkowej"]
[null,null,null,null,null,null,null,null,null,null,null,null,null,null,null,null,null,null,null,null,null,null,null,null,null,null,"TRZECI URZĄD SKARBOWY W GDAŃSKU","2207",null,"FRANCJA","FR"]
[null,null,null,null,null,null,null,null,null,null,null,null,null,null,null,null,null,null,null,null,null,null,null,null,null,null,"POMORSKI URZĄD SKARBOWY W GDAŃSKU","2271",null,"FRANCUSKIE TERYTORIUM POŁUDNIOWE","TF"]
[null,"INSTRUKCJA",null,null,null,null,null,null,null,null,null,null,null,null,null,null,null,null,null,null,null,null,null,null,null,null,"PIERWSZY URZĄD SKARBOWY W GDYNI","2208",null,"GABON","GA"]
[null,"Arkusz zapisuje dane do pliku XML zgodnym z schematem Ministerstwa Finansów.",null,null,null,null,null,null,null,null,null,null,null,null,null,null,null,null,null,null,null,null,null,null,null,null,"DRUGI URZĄD SKARBOWY W GDYNI","2209",null,"GAMBIA","GM"]
[null,"Plik JPK w formacie xml zapisywany jest w tym samym folderze, w którym znajduje się ten arkusz Excela.",null,null,null,null,null,null,null,null,null,null,null,null,null,null,null,null,null,null,null,null,null,null,null,null,"URZĄD SKARBOWY W GIŻYCKU","2807",null,"GHANA","GH"]
[null,"Pliki JPK.xml wysyła się internetem na specjalnej stronie internetowej Ministerstwa Finansów (Klient JPK WEB):",null,null,null,null,null,null,null,null,null,null,null,null,null,null,null,null,null,null,null,null,null,null,null,null,"PIERWSZY URZĄD SKARBOWY W GLIWICACH","2412",null,"GIBRALTAR","GI"]
[null,"https://e-mikrofirma.mf.gov.pl/jpk-client",null,null,null,null,null,null,null,null,null,null,null,null,null,null,null,null,null,null,null,null,null,null,null,null,"DRUGI URZĄD SKARBOWY W GLIWICACH","2413",null,"GRECJA","GR"]
[null,null,null,null,null,null,null,null,null,null,null,null,null,null,null,null,null,null,null,null,null,null,null,null,null,null,"URZĄD SKARBOWY W GŁOGOWIE","0205",null,"GRENADA","GD"]
[null,"Kliknięcie przycisku 'Zapisz JPK do pliku' w pierwszej  kolejności uruchamia procedurę sprawdzania poprawności danych",null,null,null,null,null,null,null,null,null,null,null,null,null,null,null,null,null,null,null,null,null,null,null,null,"URZĄD SKARBOWY W GŁOWNIE","1004",null,"GRENLANDIA","GL"]
[null,"a następnie zapisuje te dane do pliku JPK w formacie XML.",null,null,null,null,null,null,null,null,null,null,null,null,null,null,null,null,null,null,null,null,null,null,null,null,"URZĄD SKARBOWY W GŁUBCZYCACH","1603",null,"GRUZJA","GE"]
[null,"Sprawdzenie poprawności danych uruchamia też przycisk 'Sprawdź' w arkuszu i naprawia formatowanie komórek.",null,null,null,null,null,null,null,null,null,null,null,null,null,null,null,null,null,null,null,null,null,null,null,null,"URZĄD SKARBOWY W GNIEŹNIE","3003",null,"GUAM","GU"]
[null,null,null,null,null,null,null,null,null,null,null,null,null,null,null,null,null,null,null,null,null,null,null,null,null,null,"URZĄD SKARBOWY W GOLENIOWIE","3205",null,"GUERNSEY","GG"]
[null,"Procedura sprawdzania poprawności danych:",null,null,null,null,null,null,null,null,null,null,null,null,null,null,null,null,null,null,null,null,null,null,null,null,"URZĄD SKARBOWY W GOLUBIU-DOBRZYNIU","0422",null,"GUJANA","GY"]
[null,"-  automatycznie uzupełnia narastająco kolumnę 'Lp',",null,null,null,null,null,null,null,null,null,null,null,null,null,null,null,null,null,null,null,null,null,null,null,null,"URZĄD SKARBOWY W GORLICACH","1206",null,"GUJANA FRANCUSKA","GF"]
[null,"-  zamienia separatory daty typu '.' (kropka) i '/' na '-',",null,null,null,null,null,null,null,null,null,null,null,null,null,null,null,null,null,null,null,null,null,null,null,null,"URZĄD SKARBOWY W GORZOWIE WIELKOPOLSKIM","0802",null,"GWADELUPA","GP"]
[null,"-  zamienia separator liczb dziesiętnych typu '.' (kropka) na ',' (przecinek),",null,null,null,null,null,null,null,null,null,null,null,null,null,null,null,null,null,null,null,null,null,null,null,null,"URZĄD SKARBOWY W GOSTYNINIE","1405",null,"GWATEMALA","GT"]
[null,"-  sprawdza, czy wypełnione są wszystkie pola obowiązkowe,",null,null,null,null,null,null,null,null,null,null,null,null,null,null,null,null,null,null,null,null,null,null,null,null,"URZĄD SKARBOWY W GOSTYNIU","3004",null,"GWINEA","GN"]
[null,"-  sprawdza poprawność dat i kwot.",null,null,null,null,null,null,null,null,null,null,null,null,null,null,null,null,null,null,null,null,null,null,null,null,"URZĄD SKARBOWY W GÓRZE","0233",null,"GWINEA RÓWNIKOWA","GQ"]
[null,"-  sprawdza poprawność utworzonego pliku XLM ze schematem XSD ze strony Ministerstwa Finansów.",null,null,null,null,null,null,null,null,null,null,null,null,null,null,null,null,null,null,null,null,null,null,null,null,"URZĄD SKARBOWY W GRAJEWIE","2006",null,"GWINEA-BISSAU","GW"]
[null,null,null,null,null,null,null,null,null,null,null,null,null,null,null,null,null,null,null,null,null,null,null,null,null,null,"URZĄD SKARBOWY W GRODZISKU MAZOWIECKIM","1406",null,"HAITI","HT"]
[null,"Dane do arkusza można zaimportować z pliku xml zawierającego dane JPK przyciskiem 'Import pliku JPK'.",null,null,null,null,null,null,null,null,null,null,null,null,null,null,null,null,null,null,null,null,null,null,null,null,"URZĄD SKARBOWY W GRODZISKU WIELKOPOLSKIM","3005",null,"HISZPANIA","ES"]
[null,"Import umożliwia analizę danych przez filtrowanie. Import kilku plików dokonuje scalenia danych w kolejności ich otwierania.",null,null,null,null,null,null,null,null,null,null,null,null,null,null,null,null,null,null,null,null,null,null,null,null,"URZĄD SKARBOWY W GRÓJCU","1407",null,"HONDURAS","HN"]
[null,"Warunkiem importu z kilku plików XML jest ten sam kod systemowy JPK z tego samego okresu Od Do.",null,null,null,null,null,null,null,null,null,null,null,null,null,null,null,null,null,null,null,null,null,null,null,null,"URZĄD SKARBOWY W GRUDZIĄDZU","0408",null,"HONGKONG","HK"]
[null,null,null,null,null,null,null,null,null,null,null,null,null,null,null,null,null,null,null,null,null,null,null,null,null,null,"URZĄD SKARBOWY W GRYFICACH","3206",null,"INDIE","IN"]
[null,"Dane wprowadza się do arkuszy za pomocą przycisku 'Importuj z pliku csv,txt,xls,xml,dbf'.",null,null,null,null,null,null,null,null,null,null,null,null,null,null,null,null,null,null,null,null,null,null,null,null,"URZĄD SKARBOWY W GRYFINIE","3207",null,"INDONEZJA","ID"]
[null,"Do arkusza można zaimportować dane z kilku plików csv, txt, xls(xlsx) xml i dbf, które zostaną kolejno dodane.",null,null,null,null,null,null,null,null,null,null,null,null,null,null,null,null,null,null,null,null,null,null,null,null,"URZĄD SKARBOWY W HAJNÓWCE","2015",null,"IRAK","IQ"]
[null,"Jeżeli pliki zawierają dane w kolumnach oznaczonych nagłówkami, które wymienione są w trzecim wierszu",null,null,null,null,null,null,null,null,null,null,null,null,null,null,null,null,null,null,null,null,null,null,null,null,"URZĄD SKARBOWY W HRUBIESZOWIE","0605",null,"IRAN","IR"]
[null,"arkusza JPK to dane przeniesione zostaną automatycznie (nazwy nagłówków określono w schematach XSD).",null,null,null,null,null,null,null,null,null,null,null,null,null,null,null,null,null,null,null,null,null,null,null,null,"URZĄD SKARBOWY W IŁAWIE","2808",null,"IRLANDIA","IE"]
[null,"Z pliku csv, txt, xls, xml, dbf który nie posiada ww. nagłówków dane zostaną przeniesione następująco:",null,null,null,null,null,null,null,null,null,null,null,null,null,null,null,null,null,null,null,null,null,null,null,null,"URZĄD SKARBOWY W INOWROCŁAWIU","0409",null,"ISLANDIA","IS"]
[null,"- plik csv, txt, xml dbf zostanie otwarty jako arkusz, tak jak plik typu xls",null,null,null,null,null,null,null,null,null,null,null,null,null,null,null,null,null,null,null,null,null,null,null,null,"URZĄD SKARBOWY W JANOWIE LUBELSKIM","0606",null,"IZRAEL","IL"]
[null,"- należy w otwartym arkuszu zaznaczyć pierwszą od lewej komórkę z danymi i nacisnąć klawisz funkcyjny F5",null,null,null,null,null,null,null,null,null,null,null,null,null,null,null,null,null,null,null,null,null,null,null,null,"URZĄD SKARBOWY W JAROCINIE","3006",null,"JAMAJKA","JM"]
[null,"Aby dane zostały przeniesione poprawnie plik musi zawierać taką samą liczbę kolumn z danymi jak arkusz JPK.",null,null,null,null,null,null,null,null,null,null,null,null,null,null,null,null,null,null,null,null,null,null,null,null,"URZĄD SKARBOWY W JAROSŁAWIU","1804",null,"JAPONIA","JP"]
[null,null,null,null,null,null,null,null,null,null,null,null,null,null,null,null,null,null,null,null,null,null,null,null,null,null,"URZĄD SKARBOWY W JASTRZĘBIU-ZDROJU","2414",null,"JEMEN","YE"]
[null,null,null,null,null,null,null,null,null,null,null,null,null,null,null,null,null,null,null,null,null,null,null,null,null,null,"URZĄD SKARBOWY W JAŚLE","1805",null,"JERSEY","JE"]
[null,null,null,null,null,null,null,null,null,null,null,null,null,null,null,null,null,null,null,null,null,null,null,null,null,null,"URZĄD SKARBOWY W JAWORZE","0206",null,"JORDANIA","JO"]
[null,"LICENCJA PROGRAMU \"ARKUSZE JPK\"",null,null,null,null,null,null,null,null,null,null,null,null,null,null,null,null,null,null,null,null,null,null,null,null,"URZĄD SKARBOWY W JAWORZNIE","2415",null,"KAJMANY","KY"]
[null,"§ 1 Udziela się licencjobiorcy niewyłącznej licencji na używanie programu na jednym komputerze przez okres",null,null,null,null,null,null,null,null,null,null,null,null,null,null,null,null,null,null,null,null,null,null,null,null,"URZĄD SKARBOWY W JELENIEJ GÓRZE","0207",null,"KAMBODŻA","KH"]
[null,"      12 miesięcy od jego pobrania.",null,null,null,null,null,null,null,null,null,null,null,null,null,null,null,null,null,null,null,null,null,null,null,null,"URZĄD SKARBOWY W JĘDRZEJOWIE","2603",null,"KAMERUN","CM"]
[null,"§ 2 Licencja nie obejmuje prawa do rozpowszechniania, rozprowadzania i wypożyczania programu.",null,null,null,null,null,null,null,null,null,null,null,null,null,null,null,null,null,null,null,null,null,null,null,null,"URZĄD SKARBOWY W WEJHEROWIE","2220",null,"KANADA","CA"]
[null,"§ 3 Licencjodawca nie bierze odpowiedzialności bezpośrednio lub pośrednio, za wybór Produktu przez Licencjobiorcę, oraz",null,null,null,null,null,null,null,null,null,null,null,null,null,null,null,null,null,null,null,null,null,null,null,null,"PIERWSZY URZĄD SKARBOWY W KALISZU","3007",null,"KATAR","QA"]
[null,"     za prawidłowość jego wykorzystania w każdym pojedynczym przypadku. Zalecamy skorzystanie z profesjonalnej pomocy",null,null,null,null,null,null,null,null,null,null,null,null,null,null,null,null,null,null,null,null,null,null,null,null,"DRUGI URZĄD SKARBOWY W KALISZU","3008",null,"KAZACHSTAN","KZ"]
[null,"     prawnej we wszystkich przypadkach związanych z zawieraniem umów i innych czynnościach cywilno - prawnych.",null,null,null,null,null,null,null,null,null,null,null,null,null,null,null,null,null,null,null,null,null,null,null,null,"DRUGI WIELKOPOLSKI URZĄD SKARBOWY W KALISZU","3072",null,"KENIA","KE"]
[null,null,null,null,null,null,null,null,null,null,null,null,null,null,null,null,null,null,null,null,null,null,null,null,null,null,"URZĄD SKARBOWY W KAMIENIU POMORSKIM","3208",null,"KIRGISTAN","KG"]
[null,null,null,null,null,null,null,null,null,null,null,null,null,null,null,null,null,null,null,null,null,null,null,null,null,null,"URZĄD SKARBOWY W KAMIENNEJ GÓRZE","0208",null,"KIRIBATI","KI"]
[null,null,null,null,null,null,null,null,null,null,null,null,null,null,null,null,null,null,null,null,null,null,null,null,null,null,"URZĄD SKARBOWY W KARTUZACH","2210",null,"KOLUMBIA","CO"]
[null,null,null,null,null,null,null,null,null,null,null,null,null,null,null,null,null,null,null,null,null,null,null,null,null,null,"PIERWSZY URZĄD SKARBOWY W KATOWICACH","2416",null,"KOMORY","KM"]
[null,null,null,null,null,null,null,null,null,null,null,null,null,null,null,null,null,null,null,null,null,null,null,null,null,null,"DRUGI URZĄD SKARBOWY W KATOWICACH","2417",null,"KONGO","CG"]
[null,null,null,null,null,null,null,null,null,null,null,null,null,null,null,null,null,null,null,null,null,null,null,null,null,null,"URZĄD SKARBOWY W KAZIMIERZY WIELKIEJ","2614",null,"KONGO, REPUBLIKA DEMOKRATYCZNA","CD"]
[null,null,null,null,null,null,null,null,null,null,null,null,null,null,null,null,null,null,null,null,null,null,null,null,null,null,"URZĄD SKARBOWY W KĘDZIERZYNIE-KOŹLU","1604",null,"KOREAŃ\u0083SKA REPUBLIKA LUDOWO-DEMOKRATYCZNA","KP"]
[null,null,null,null,null,null,null,null,null,null,null,null,null,null,null,null,null,null,null,null,null,null,null,null,null,null,"URZĄD SKARBOWY W KĘPNIE","3009",null,"KOSOWO","XK"]
[null,null,null,null,null,null,null,null,null,null,null,null,null,null,null,null,null,null,null,null,null,null,null,null,null,null,"URZĄD SKARBOWY W KĘTRZYNIE","2809",null,"KOSTARYKA","CR"]
[null,null,null,null,null,null,null,null,null,null,null,null,null,null,null,null,null,null,null,null,null,null,null,null,null,null,"PIERWSZY URZĄD SKARBOWY W KIELCACH","2604",null,"KUBA","CU"]
[null,null,null,null,null,null,null,null,null,null,null,null,null,null,null,null,null,null,null,null,null,null,null,null,null,null,"DRUGI URZĄD SKARBOWY W KIELCACH","2605",null,"KUWEJT","KW"]
[null,null,null,null,null,null,null,null,null,null,null,null,null,null,null,null,null,null,null,null,null,null,null,null,null,null,"URZĄD SKARBOWY W KLUCZBORKU","1605",null,"LAOS","LA"]
[null,null,null,null,null,null,null,null,null,null,null,null,null,null,null,null,null,null,null,null,null,null,null,null,null,null,"URZĄD SKARBOWY W KŁOBUCKU","2418",null,"LESOTHO","LS"]
[null,null,null,null,null,null,null,null,null,null,null,null,null,null,null,null,null,null,null,null,null,null,null,null,null,null,"URZĄD SKARBOWY W KŁODZKU","0209",null,"LIBAN","LB"]
[null,null,null,null,null,null,null,null,null,null,null,null,null,null,null,null,null,null,null,null,null,null,null,null,null,null,"URZĄD SKARBOWY W KOLBUSZOWEJ","1806",null,"LIBERIA","LR"]
[null,null,null,null,null,null,null,null,null,null,null,null,null,null,null,null,null,null,null,null,null,null,null,null,null,null,"URZĄD SKARBOWY W KOLE","3010",null,"LIBIA","LY"]
[null,null,null,null,null,null,null,null,null,null,null,null,null,null,null,null,null,null,null,null,null,null,null,null,null,null,"URZĄD SKARBOWY W KOLNIE","2007",null,"LIECHTENSTEIN","LI"]
[null,null,null,null,null,null,null,null,null,null,null,null,null,null,null,null,null,null,null,null,null,null,null,null,null,null,"URZĄD SKARBOWY W KOŁOBRZEGU","3209",null,"LITWA","LT"]
[null,null,null,null,null,null,null,null,null,null,null,null,null,null,null,null,null,null,null,null,null,null,null,null,null,null,"URZĄD SKARBOWY W KONINIE","3011",null,"ŁOTWA","LV"]
[null,null,null,null,null,null,null,null,null,null,null,null,null,null,null,null,null,null,null,null,null,null,null,null,null,null,"URZĄD SKARBOWY W KOŃSKICH","2606",null,"LUKSEMBURG","LU"]
[null,null,null,null,null,null,null,null,null,null,null,null,null,null,null,null,null,null,null,null,null,null,null,null,null,null,"PIERWSZY URZĄD SKARBOWY W KOSZALINIE","3210",null,"MACEDONIA","MK"]
[null,null,null,null,null,null,null,null,null,null,null,null,null,null,null,null,null,null,null,null,null,null,null,null,null,null,"DRUGI URZĄD SKARBOWY W KOSZALINIE","3211",null,"MADAGASKAR","MG"]
[null,null,null,null,null,null,null,null,null,null,null,null,null,null,null,null,null,null,null,null,null,null,null,null,null,null,"URZĄD SKARBOWY W KOŚCIANIE","3012",null,"MAJOTTA","YT"]
[null,null,null,null,null,null,null,null,null,null,null,null,null,null,null,null,null,null,null,null,null,null,null,null,null,null,"URZĄD SKARBOWY W KOŚCIERZYNIE","2211",null,"MAKAU","MO"]
[null,null,null,null,null,null,null,null,null,null,null,null,null,null,null,null,null,null,null,null,null,null,null,null,null,null,"URZĄD SKARBOWY W KOZIENICACH","1408",null,"MALAWI","MW"]
[null,null,null,null,null,null,null,null,null,null,null,null,null,null,null,null,null,null,null,null,null,null,null,null,null,null,"PIERWSZY URZĄD SKARBOWY KRAKÓW","1207",null,"MALEDIWY","MV"]
[null,null,null,null,null,null,null,null,null,null,null,null,null,null,null,null,null,null,null,null,null,null,null,null,null,null,"URZĄD SKARBOWY KRAKÓW-KROWODRZA","1208",null,"MALEZJA","MY"]
[null,null,null,null,null,null,null,null,null,null,null,null,null,null,null,null,null,null,null,null,null,null,null,null,null,null,"URZĄD SKARBOWY KRAKÓW-NOWA HUTA","1209",null,"MALI","ML"]
[null,null,null,null,null,null,null,null,null,null,null,null,null,null,null,null,null,null,null,null,null,null,null,null,null,null,"URZĄD SKARBOWY KRAKÓW-PODGÓRZE","1210",null,"MALTA","MT"]
[null,null,null,null,null,null,null,null,null,null,null,null,null,null,null,null,null,null,null,null,null,null,null,null,null,null,"URZĄD SKARBOWY KRAKÓW-PRĄDNIK","1211",null,"MARIANY PÓŁNOCNE","MP"]
[null,null,null,null,null,null,null,null,null,null,null,null,null,null,null,null,null,null,null,null,null,null,null,null,null,null,"URZĄD SKARBOWY KRAKÓW-STARE MIASTO","1212",null,"MAROKO","MA"]
[null,null,null,null,null,null,null,null,null,null,null,null,null,null,null,null,null,null,null,null,null,null,null,null,null,null,"URZĄD SKARBOWY KRAKÓW-ŚRÓDMIEŚCIE","1213",null,"MARTYNIKA","MQ"]
[null,null,null,null,null,null,null,null,null,null,null,null,null,null,null,null,null,null,null,null,null,null,null,null,null,null,"DRUGI URZĄD SKARBOWY KRAKÓW","1228",null,"MAURETANIA","MR"]
[null,null,null,null,null,null,null,null,null,null,null,null,null,null,null,null,null,null,null,null,null,null,null,null,null,null,"URZĄD SKARBOWY W KRAPKOWICACH","1613",null,"MAURITIUS","MU"]
[null,null,null,null,null,null,null,null,null,null,null,null,null,null,null,null,null,null,null,null,null,null,null,null,null,null,"URZĄD SKARBOWY W KRASNYMSTAWIE","0607",null,"MEKSYK","MX"]
[null,null,null,null,null,null,null,null,null,null,null,null,null,null,null,null,null,null,null,null,null,null,null,null,null,null,"URZĄD SKARBOWY W KRAŚNIKU","0608",null,"MELILLA","XL"]
[null,null,null,null,null,null,null,null,null,null,null,null,null,null,null,null,null,null,null,null,null,null,null,null,null,null,"URZĄD SKARBOWY W KROŚNIE","1807",null,"MIKRONEZJA","FM"]
[null,null,null,null,null,null,null,null,null,null,null,null,null,null,null,null,null,null,null,null,null,null,null,null,null,null,"URZĄD SKARBOWY W KROŚNIE ODRZAŃSKIM","0803",null,"MINOR","UM"]
[null,null,null,null,null,null,null,null,null,null,null,null,null,null,null,null,null,null,null,null,null,null,null,null,null,null,"URZĄD SKARBOWY W KROTOSZYNIE","3013",null,"MOŁDOWA","MD"]
[null,null,null,null,null,null,null,null,null,null,null,null,null,null,null,null,null,null,null,null,null,null,null,null,null,null,"URZĄD SKARBOWY W KUTNIE","1005",null,"MONAKO","MC"]
[null,null,null,null,null,null,null,null,null,null,null,null,null,null,null,null,null,null,null,null,null,null,null,null,null,null,"URZĄD SKARBOWY W KWIDZYNIE","2212",null,"MONGOLIA","MN"]
[null,null,null,null,null,null,null,null,null,null,null,null,null,null,null,null,null,null,null,null,null,null,null,null,null,null,"URZĄD SKARBOWY W LEGIONOWIE","1409",null,"MONTSERRAT","MS"]
[null,null,null,null,null,null,null,null,null,null,null,null,null,null,null,null,null,null,null,null,null,null,null,null,null,null,"URZĄD SKARBOWY W LEGNICY","0210",null,"MOZAMBIK","MZ"]
[null,null,null,null,null,null,null,null,null,null,null,null,null,null,null,null,null,null,null,null,null,null,null,null,null,null,"URZĄD SKARBOWY W LESKU","1808",null,"MYANMAR (BURMA)","MM"]
[null,null,null,null,null,null,null,null,null,null,null,null,null,null,null,null,null,null,null,null,null,null,null,null,null,null,"URZĄD SKARBOWY W LESZNIE","3014",null,"NAMIBIA","NA"]
[null,null,null,null,null,null,null,null,null,null,null,null,null,null,null,null,null,null,null,null,null,null,null,null,null,null,"URZĄD SKARBOWY W LEŻAJSKU","1809",null,"NAURU","NR"]
[null,null,null,null,null,null,null,null,null,null,null,null,null,null,null,null,null,null,null,null,null,null,null,null,null,null,"URZĄD SKARBOWY W LĘBORKU","2213",null,"NEPAL","NP"]
[null,null,null,null,null,null,null,null,null,null,null,null,null,null,null,null,null,null,null,null,null,null,null,null,null,null,"URZĄD SKARBOWY W LIMANOWEJ","1214",null,"NIDERLANDY (HOLANDIA)","NL"]
[null,null,null,null,null,null,null,null,null,null,null,null,null,null,null,null,null,null,null,null,null,null,null,null,null,null,"URZĄD SKARBOWY W LIPNIE","0410",null,"NIEMCY","DE"]
[null,null,null,null,null,null,null,null,null,null,null,null,null,null,null,null,null,null,null,null,null,null,null,null,null,null,"URZĄD SKARBOWY W LIPSKU","1447",null,"NIGER","NE"]
[null,null,null,null,null,null,null,null,null,null,null,null,null,null,null,null,null,null,null,null,null,null,null,null,null,null,"URZĄD SKARBOWY W LUBACZOWIE","1810",null,"NIGERIA","NG"]
[null,null,null,null,null,null,null,null,null,null,null,null,null,null,null,null,null,null,null,null,null,null,null,null,null,null,"URZĄD SKARBOWY W LUBANIU","0211",null,"NIKARAGUA","NI"]
[null,null,null,null,null,null,null,null,null,null,null,null,null,null,null,null,null,null,null,null,null,null,null,null,null,null,"URZĄD SKARBOWY W LUBARTOWIE","0609",null,"NIUE","NU"]
[null,null,null,null,null,null,null,null,null,null,null,null,null,null,null,null,null,null,null,null,null,null,null,null,null,null,"URZĄD SKARBOWY W LUBINIE","0212",null,"NORFOLK","NF"]
[null,null,null,null,null,null,null,null,null,null,null,null,null,null,null,null,null,null,null,null,null,null,null,null,null,null,"PIERWSZY URZĄD SKARBOWY W LUBLINIE","0610",null,"NORWEGIA","NO"]
[null,null,null,null,null,null,null,null,null,null,null,null,null,null,null,null,null,null,null,null,null,null,null,null,null,null,"DRUGI URZĄD SKARBOWY W LUBLINIE","0611",null,"NOWA KALEDONIA","NC"]
[null,null,null,null,null,null,null,null,null,null,null,null,null,null,null,null,null,null,null,null,null,null,null,null,null,null,"TRZECI URZĄD SKARBOWY W LUBLINIE","0612",null,"NOWA ZELANDIA","NZ"]
[null,null,null,null,null,null,null,null,null,null,null,null,null,null,null,null,null,null,null,null,null,null,null,null,null,null,"LUBELSKI URZĄD SKARBOWY W LUBLINIE","0671",null,"OKUPOWANE TERYTORIUM PALESTYNY","PS"]
[null,null,null,null,null,null,null,null,null,null,null,null,null,null,null,null,null,null,null,null,null,null,null,null,null,null,"URZĄD SKARBOWY W LUBLIŃCU","2419",null,"OMAN","OM"]
[null,null,null,null,null,null,null,null,null,null,null,null,null,null,null,null,null,null,null,null,null,null,null,null,null,null,"URZĄD SKARBOWY W LWÓWKU ŚLĄSKIM","0213",null,"PAKISTAN","PK"]
[null,null,null,null,null,null,null,null,null,null,null,null,null,null,null,null,null,null,null,null,null,null,null,null,null,null,"URZĄD SKARBOWY W ŁAŃCUCIE","1811",null,"PALAU","PW"]
[null,null,null,null,null,null,null,null,null,null,null,null,null,null,null,null,null,null,null,null,null,null,null,null,null,null,"URZĄD SKARBOWY W ŁASKU","1006",null,"PANAMA","PA"]
[null,null,null,null,null,null,null,null,null,null,null,null,null,null,null,null,null,null,null,null,null,null,null,null,null,null,"URZĄD SKARBOWY W ŁĘCZNEJ","0621",null,"PAPUA NOWA GWINEA","PG"]
[null,null,null,null,null,null,null,null,null,null,null,null,null,null,null,null,null,null,null,null,null,null,null,null,null,null,"URZĄD SKARBOWY W ŁĘCZYCY","1028",null,"PARAGWAJ","PY"]
[null,null,null,null,null,null,null,null,null,null,null,null,null,null,null,null,null,null,null,null,null,null,null,null,null,null,"URZĄD SKARBOWY W ŁOMŻY","2008",null,"PERU","PE"]
[null,null,null,null,null,null,null,null,null,null,null,null,null,null,null,null,null,null,null,null,null,null,null,null,null,null,"URZĄD SKARBOWY W ŁOSICACH","1410",null,"PITCAIRN","PN"]
[null,null,null,null,null,null,null,null,null,null,null,null,null,null,null,null,null,null,null,null,null,null,null,null,null,null,"URZĄD SKARBOWY W ŁOWICZU","1007",null,"POLINEZJA FRANCUSKA","PF"]
[null,null,null,null,null,null,null,null,null,null,null,null,null,null,null,null,null,null,null,null,null,null,null,null,null,null,"PIERWSZY URZĄD SKARBOWY ŁÓDŹ-BAŁUTY","1008",null,"POŁUDNIOWA GEORGIA I POŁUD.WYSPY SANDWICH","GS"]
[null,null,null,null,null,null,null,null,null,null,null,null,null,null,null,null,null,null,null,null,null,null,null,null,null,null,"DRUGI URZĄD SKARBOWY ŁÓDŹ-BAŁUTY","1009",null,"PORTUGALIA","PT"]
[null,null,null,null,null,null,null,null,null,null,null,null,null,null,null,null,null,null,null,null,null,null,null,null,null,null,"PIERWSZY URZĄD SKARBOWY ŁÓDŹ-GÓRNA","1010",null,"PORTORYKO","PR"]
[null,null,null,null,null,null,null,null,null,null,null,null,null,null,null,null,null,null,null,null,null,null,null,null,null,null,"DRUGI URZĄD SKARBOWY ŁÓDŹ-GÓRNA","1011",null,"REP.ŚRODKOWOAFRYKAŃ\u0083SKA","CF"]
[null,null,null,null,null,null,null,null,null,null,null,null,null,null,null,null,null,null,null,null,null,null,null,null,null,null,"URZĄD SKARBOWY ŁÓDŹ-POLESIE","1012",null,"REPUBLIKA CZESKA","CZ"]
[null,null,null,null,null,null,null,null,null,null,null,null,null,null,null,null,null,null,null,null,null,null,null,null,null,null,"URZĄD SKARBOWY ŁÓDŹ-ŚRÓDMIEŚCIE","1013",null,"REPUBLIKA KOREI","KR"]
[null,null,null,null,null,null,null,null,null,null,null,null,null,null,null,null,null,null,null,null,null,null,null,null,null,null,"URZĄD SKARBOWY ŁÓDŹ-WIDZEW","1014",null,"REPUBLIKA POŁUDNIOWEJ AFRYKI","ZA"]
[null,null,null,null,null,null,null,null,null,null,null,null,null,null,null,null,null,null,null,null,null,null,null,null,null,null,"ŁÓDZKI URZĄD SKARBOWY W ŁODZI","1071",null,"REUNION","RE"]
[null,null,null,null,null,null,null,null,null,null,null,null,null,null,null,null,null,null,null,null,null,null,null,null,null,null,"URZĄD SKARBOWY W ŁUKOWIE","0613",null,"ROSJA","RU"]
[null,null,null,null,null,null,null,null,null,null,null,null,null,null,null,null,null,null,null,null,null,null,null,null,null,null,"URZĄD SKARBOWY W MAKOWIE MAZOWIECKIM","1411",null,"RUMUNIA","RO"]
[null,null,null,null,null,null,null,null,null,null,null,null,null,null,null,null,null,null,null,null,null,null,null,null,null,null,"URZĄD SKARBOWY W MALBORKU","2214",null,"RWANDA","RW"]
[null,null,null,null,null,null,null,null,null,null,null,null,null,null,null,null,null,null,null,null,null,null,null,null,null,null,"MAŁOPOLSKI URZĄD SKARBOWY W KRAKOWIE","1271",null,"SAHARA ZACHODNIA","EH"]
[null,null,null,null,null,null,null,null,null,null,null,null,null,null,null,null,null,null,null,null,null,null,null,null,null,null,"URZĄD SKARBOWY W MIECHOWIE","1215",null,"SAINT BARTHELEMY","BL"]
[null,null,null,null,null,null,null,null,null,null,null,null,null,null,null,null,null,null,null,null,null,null,null,null,null,null,"URZĄD SKARBOWY W MIELCU","1812",null,"SAINT KITTS I NEVIS","KN"]
[null,null,null,null,null,null,null,null,null,null,null,null,null,null,null,null,null,null,null,null,null,null,null,null,null,null,"URZĄD SKARBOWY W MIĘDZYCHODZIE","3015",null,"SAINT LUCIA","LC"]
[null,null,null,null,null,null,null,null,null,null,null,null,null,null,null,null,null,null,null,null,null,null,null,null,null,null,"URZĄD SKARBOWY W MIĘDZYRZECZU","0804",null,"SAINT MARTIN","MF"]
[null,null,null,null,null,null,null,null,null,null,null,null,null,null,null,null,null,null,null,null,null,null,null,null,null,null,"URZĄD SKARBOWY W MIKOŁOWIE","2420",null,"SAINT VINCENT I GRENADYNY","VC"]
[null,null,null,null,null,null,null,null,null,null,null,null,null,null,null,null,null,null,null,null,null,null,null,null,null,null,"URZĄD SKARBOWY W MILICZU","0214",null,"SALWADOR","SV"]
[null,null,null,null,null,null,null,null,null,null,null,null,null,null,null,null,null,null,null,null,null,null,null,null,null,null,"URZĄD SKARBOWY W MIŃSKU MAZOWIECKIM","1412",null,"SAMOA","WS"]
[null,null,null,null,null,null,null,null,null,null,null,null,null,null,null,null,null,null,null,null,null,null,null,null,null,null,"URZĄD SKARBOWY W MŁAWIE","1413",null,"SAMOA AMERYKAŃ\u0083SKIE","AS"]
[null,null,null,null,null,null,null,null,null,null,null,null,null,null,null,null,null,null,null,null,null,null,null,null,null,null,"URZĄD SKARBOWY W MOGILNIE","0411",null,"SAN MARINO","SM"]
[null,null,null,null,null,null,null,null,null,null,null,null,null,null,null,null,null,null,null,null,null,null,null,null,null,null,"URZĄD SKARBOWY W MOŃKACH","2009",null,"SENEGAL","SN"]
[null,null,null,null,null,null,null,null,null,null,null,null,null,null,null,null,null,null,null,null,null,null,null,null,null,null,"URZĄD SKARBOWY W MYSŁOWICACH","2421",null,"SERBIA","RS"]
[null,null,null,null,null,null,null,null,null,null,null,null,null,null,null,null,null,null,null,null,null,null,null,null,null,null,"URZĄD SKARBOWY W MYSZKOWIE","2422",null,"SESZELE","SC"]
[null,null,null,null,null,null,null,null,null,null,null,null,null,null,null,null,null,null,null,null,null,null,null,null,null,null,"URZĄD SKARBOWY W MYŚLENICACH","1216",null,"SIERRA LEONE","SL"]
[null,null,null,null,null,null,null,null,null,null,null,null,null,null,null,null,null,null,null,null,null,null,null,null,null,null,"URZĄD SKARBOWY W MYŚLIBORZU","3212",null,"SINGAPUR","SG"]
[null,null,null,null,null,null,null,null,null,null,null,null,null,null,null,null,null,null,null,null,null,null,null,null,null,null,"URZĄD SKARBOWY W NAKLE NAD NOTECIĄ","0412",null,"SŁOWACJA","SK"]
[null,null,null,null,null,null,null,null,null,null,null,null,null,null,null,null,null,null,null,null,null,null,null,null,null,null,"URZĄD SKARBOWY W NAMYSŁOWIE","1606",null,"SŁOWENIA","SI"]
[null,null,null,null,null,null,null,null,null,null,null,null,null,null,null,null,null,null,null,null,null,null,null,null,null,null,"URZĄD SKARBOWY W NIDZICY","2810",null,"SOMALIA","SO"]
[null,null,null,null,null,null,null,null,null,null,null,null,null,null,null,null,null,null,null,null,null,null,null,null,null,null,"URZĄD SKARBOWY W NISKU","1823",null,"SRI LANKA","LK"]
[null,null,null,null,null,null,null,null,null,null,null,null,null,null,null,null,null,null,null,null,null,null,null,null,null,null,"URZĄD SKARBOWY W NOWEJ RUDZIE","0215",null,"SAINT PIERRE I MIQUELON","PM"]
[null,null,null,null,null,null,null,null,null,null,null,null,null,null,null,null,null,null,null,null,null,null,null,null,null,null,"URZĄD SKARBOWY W NOWEJ SOLI","0805",null,"STANY ZJEDNOCZONE AMERYKI","US"]
[null,null,null,null,null,null,null,null,null,null,null,null,null,null,null,null,null,null,null,null,null,null,null,null,null,null,"URZĄD SKARBOWY W NOWYM DWORZE MAZOWIECKIM","1414",null,"SUAZI","SZ"]
[null,null,null,null,null,null,null,null,null,null,null,null,null,null,null,null,null,null,null,null,null,null,null,null,null,null,"URZĄD SKARBOWY W NOWYM MIEŚCIE LUBAWSKIM","2811",null,"SUDAN","SD"]
[null,null,null,null,null,null,null,null,null,null,null,null,null,null,null,null,null,null,null,null,null,null,null,null,null,null,"URZĄD SKARBOWY W NOWYM SĄCZU","1217",null,"SURINAM","SR"]
[null,null,null,null,null,null,null,null,null,null,null,null,null,null,null,null,null,null,null,null,null,null,null,null,null,null,"URZĄD SKARBOWY W NOWYM TARGU","1218",null,"SVALBARD I JAN MAYEN","SJ"]
[null,null,null,null,null,null,null,null,null,null,null,null,null,null,null,null,null,null,null,null,null,null,null,null,null,null,"URZĄD SKARBOWY W NOWYM TOMYŚLU","3016",null,"ŚWIĘTA HELENA","SH"]
[null,null,null,null,null,null,null,null,null,null,null,null,null,null,null,null,null,null,null,null,null,null,null,null,null,null,"URZĄD SKARBOWY W NYSIE","1607",null,"SYRIA","SY"]
[null,null,null,null,null,null,null,null,null,null,null,null,null,null,null,null,null,null,null,null,null,null,null,null,null,null,"URZĄD SKARBOWY W OBORNIKACH","3038",null,"SZWAJCARIA","CH"]
[null,null,null,null,null,null,null,null,null,null,null,null,null,null,null,null,null,null,null,null,null,null,null,null,null,null,"URZĄD SKARBOWY W OLECKU","2812",null,"SZWECJA","SE"]
[null,null,null,null,null,null,null,null,null,null,null,null,null,null,null,null,null,null,null,null,null,null,null,null,null,null,"URZĄD SKARBOWY W OLEŚNICY","0216",null,"TADŻYKISTAN","TJ"]
[null,null,null,null,null,null,null,null,null,null,null,null,null,null,null,null,null,null,null,null,null,null,null,null,null,null,"URZĄD SKARBOWY W OLEŚNIE","1608",null,"TAJLANDIA","TH"]
[null,null,null,null,null,null,null,null,null,null,null,null,null,null,null,null,null,null,null,null,null,null,null,null,null,null,"URZĄD SKARBOWY W OLKUSZU","1219",null,"TAJWAN","TW"]
[null,null,null,null,null,null,null,null,null,null,null,null,null,null,null,null,null,null,null,null,null,null,null,null,null,null,"URZĄD SKARBOWY W OLSZTYNIE","2813",null,"TANZANIA","TZ"]
[null,null,null,null,null,null,null,null,null,null,null,null,null,null,null,null,null,null,null,null,null,null,null,null,null,null,"WARMIŃSKO-MAZURSKI URZĄD SKARBOWY W OLSZTYNIE","2871",null,"TOGO","TG"]
[null,null,null,null,null,null,null,null,null,null,null,null,null,null,null,null,null,null,null,null,null,null,null,null,null,null,"URZĄD SKARBOWY W OŁAWIE","0217",null,"TOKELAU","TK"]
[null,null,null,null,null,null,null,null,null,null,null,null,null,null,null,null,null,null,null,null,null,null,null,null,null,null,"URZĄD SKARBOWY W OPATOWIE","2607",null,"TONGA","TO"]
[null,null,null,null,null,null,null,null,null,null,null,null,null,null,null,null,null,null,null,null,null,null,null,null,null,null,"URZĄD SKARBOWY W OPOCZNIE","1015",null,"TRYNIDAD I TOBAGO","TT"]
[null,null,null,null,null,null,null,null,null,null,null,null,null,null,null,null,null,null,null,null,null,null,null,null,null,null,"PIERWSZY URZĄD SKARBOWY W OPOLU","1609",null,"TUNEZJA","TN"]
[null,null,null,null,null,null,null,null,null,null,null,null,null,null,null,null,null,null,null,null,null,null,null,null,null,null,"DRUGI URZĄD SKARBOWY W OPOLU","1610",null,"TURCJA","TR"]
[null,null,null,null,null,null,null,null,null,null,null,null,null,null,null,null,null,null,null,null,null,null,null,null,null,null,"OPOLSKI URZĄD SKARBOWY W OPOLU","1671",null,"TURKMENISTAN","TM"]
[null,null,null,null,null,null,null,null,null,null,null,null,null,null,null,null,null,null,null,null,null,null,null,null,null,null,"URZĄD SKARBOWY W OPOLU LUBELSKIM","0614",null,"TUVALU","TV"]
[null,null,null,null,null,null,null,null,null,null,null,null,null,null,null,null,null,null,null,null,null,null,null,null,null,null,"URZĄD SKARBOWY W OSTROŁĘCE","1415",null,"UGANDA","UG"]
[null,null,null,null,null,null,null,null,null,null,null,null,null,null,null,null,null,null,null,null,null,null,null,null,null,null,"URZĄD SKARBOWY W OSTROWCU ŚWIĘTOKRZYSKIM","2608",null,"UKRAINA","UA"]
[null,null,null,null,null,null,null,null,null,null,null,null,null,null,null,null,null,null,null,null,null,null,null,null,null,null,"URZĄD SKARBOWY W OSTROWI MAZOWIECKIEJ","1416",null,"URUGWAJ","UY"]
[null,null,null,null,null,null,null,null,null,null,null,null,null,null,null,null,null,null,null,null,null,null,null,null,null,null,"URZĄD SKARBOWY W OSTROWIE WIELKOPOLSKIM","3017",null,"UZBEKISTAN","UZ"]
[null,null,null,null,null,null,null,null,null,null,null,null,null,null,null,null,null,null,null,null,null,null,null,null,null,null,"URZĄD SKARBOWY W OSTRÓDZIE","2814",null,"VANUATU","VU"]
[null,null,null,null,null,null,null,null,null,null,null,null,null,null,null,null,null,null,null,null,null,null,null,null,null,null,"URZĄD SKARBOWY W OSTRZESZOWIE","3018",null,"WALLIS I FUTUNA","WF"]
[null,null,null,null,null,null,null,null,null,null,null,null,null,null,null,null,null,null,null,null,null,null,null,null,null,null,"URZĄD SKARBOWY W OŚWIĘCIMIU","1220",null,"WATYKAN","VA"]
[null,null,null,null,null,null,null,null,null,null,null,null,null,null,null,null,null,null,null,null,null,null,null,null,null,null,"URZĄD SKARBOWY W OTWOCKU","1417",null,"WĘGRY","HU"]
[null,null,null,null,null,null,null,null,null,null,null,null,null,null,null,null,null,null,null,null,null,null,null,null,null,null,"URZĄD SKARBOWY W PABIANICACH","1016",null,"WENEZUELA","VE"]
[null,null,null,null,null,null,null,null,null,null,null,null,null,null,null,null,null,null,null,null,null,null,null,null,null,null,"URZĄD SKARBOWY W PAJĘCZNIE","1029",null,"WIELKA BRYTANIA","GB"]
[null,null,null,null,null,null,null,null,null,null,null,null,null,null,null,null,null,null,null,null,null,null,null,null,null,null,"URZĄD SKARBOWY W PARCZEWIE","0615",null,"WIETNAM","VN"]
[null,null,null,null,null,null,null,null,null,null,null,null,null,null,null,null,null,null,null,null,null,null,null,null,null,null,"URZĄD SKARBOWY W PIASECZNIE","1418",null,"WŁOCHY","IT"]
[null,null,null,null,null,null,null,null,null,null,null,null,null,null,null,null,null,null,null,null,null,null,null,null,null,null,"URZĄD SKARBOWY W PIEKARACH ŚLĄSKICH","2423",null,"WSCHODNI TIMOR","TL"]
[null,null,null,null,null,null,null,null,null,null,null,null,null,null,null,null,null,null,null,null,null,null,null,null,null,null,"URZĄD SKARBOWY W PILE","3019",null,"WYBRZEŻE KOŚCI SŁONIOWEJ","CI"]
[null,null,null,null,null,null,null,null,null,null,null,null,null,null,null,null,null,null,null,null,null,null,null,null,null,null,"URZĄD SKARBOWY W PIŃCZOWIE","2609",null,"WYSPA BOUVETA","BV"]
[null,null,null,null,null,null,null,null,null,null,null,null,null,null,null,null,null,null,null,null,null,null,null,null,null,null,"URZĄD SKARBOWY W PIOTRKOWIE TRYBUNALSKIM","1017",null,"WYSPA BOŻEGO NARODZENIA","CX"]
[null,null,null,null,null,null,null,null,null,null,null,null,null,null,null,null,null,null,null,null,null,null,null,null,null,null,"URZĄD SKARBOWY W PISZU","2815",null,"WYSPA MAN","IM"]
[null,null,null,null,null,null,null,null,null,null,null,null,null,null,null,null,null,null,null,null,null,null,null,null,null,null,"URZĄD SKARBOWY W PLESZEWIE","3039",null,"WYSPY COOKA","CK"]
[null,null,null,null,null,null,null,null,null,null,null,null,null,null,null,null,null,null,null,null,null,null,null,null,null,null,"URZĄD SKARBOWY W PŁOCKU","1419",null,"WYSPY DZIEWICZE-USA","VI"]
[null,null,null,null,null,null,null,null,null,null,null,null,null,null,null,null,null,null,null,null,null,null,null,null,null,null,"URZĄD SKARBOWY W PŁOŃSKU","1420",null,"WYSPY DZIEWICZE-W.B.","VG"]
[null,null,null,null,null,null,null,null,null,null,null,null,null,null,null,null,null,null,null,null,null,null,null,null,null,null,"URZĄD SKARBOWY W PODDĘBICACH","1018",null,"WYSPY HEARD I MCDONALD","HM"]
[null,null,null,null,null,null,null,null,null,null,null,null,null,null,null,null,null,null,null,null,null,null,null,null,null,null,"PODLASKI URZĄD SKARBOWY W BIAŁYMSTOKU","2071",null,"WYSPY KOKOSOWE (KEELINGA)","CC"]
[null,null,null,null,null,null,null,null,null,null,null,null,null,null,null,null,null,null,null,null,null,null,null,null,null,null,"URZĄD SKARBOWY W POLKOWICACH","0234",null,"WYSPY MARSHALLA","MH"]
[null,null,null,null,null,null,null,null,null,null,null,null,null,null,null,null,null,null,null,null,null,null,null,null,null,null,"URZĄD SKARBOWY POZNAŃ-GRUNWALD","3020",null,"WYSPY OWCZE","FO"]
[null,null,null,null,null,null,null,null,null,null,null,null,null,null,null,null,null,null,null,null,null,null,null,null,null,null,"URZĄD SKARBOWY POZNAŃ-JEŻYCE","3021",null,"WYSPY SALOMONA","SB"]
[null,null,null,null,null,null,null,null,null,null,null,null,null,null,null,null,null,null,null,null,null,null,null,null,null,null,"URZĄD SKARBOWY POZNAŃ-NOWE MIASTO","3022",null,"WYSPY ŚWIĘTEGO TOMASZA I KSIĄŻĘCA","ST"]
[null,null,null,null,null,null,null,null,null,null,null,null,null,null,null,null,null,null,null,null,null,null,null,null,null,null,"PIERWSZY URZĄD SKARBOWY W POZNANIU","3023",null,"WYSPY TURKS I CAICOS","TC"]
[null,null,null,null,null,null,null,null,null,null,null,null,null,null,null,null,null,null,null,null,null,null,null,null,null,null,"URZĄD SKARBOWY POZNAŃ-WINOGRADY","3025",null,"ZAMBIA","ZM"]
[null,null,null,null,null,null,null,null,null,null,null,null,null,null,null,null,null,null,null,null,null,null,null,null,null,null,"URZĄD SKARBOWY POZNAŃ-WILDA","3026",null,"ZIELONY PRZYLĄDEK","CV"]
[null,null,null,null,null,null,null,null,null,null,null,null,null,null,null,null,null,null,null,null,null,null,null,null,null,null,"PIERWSZY WIELKOPOLSKI URZĄD SKARBOWY W POZNANIU","3071",null,"ZIMBABWE","ZW"]
[null,null,null,null,null,null,null,null,null,null,null,null,null,null,null,null,null,null,null,null,null,null,null,null,null,null,"URZĄD SKARBOWY W PROSZOWICACH","1221",null,"ZJEDNOCZONE EMIRATY ARABSKIE","AE"]
[null,null,null,null,null,null,null,null,null,null,null,null,null,null,null,null,null,null,null,null,null,null,null,null,null,null,"URZĄD SKARBOWY W PRUDNIKU","1611"]
[null,null,null,null,null,null,null,null,null,null,null,null,null,null,null,null,null,null,null,null,null,null,null,null,null,null,"URZĄD SKARBOWY W PRUSZCZU GDAŃSKIM","2221"]
[null,null,null,null,null,null,null,null,null,null,null,null,null,null,null,null,null,null,null,null,null,null,null,null,null,null,"URZĄD SKARBOWY W PRUSZKOWIE","1421"]
[null,null,null,null,null,null,null,null,null,null,null,null,null,null,null,null,null,null,null,null,null,null,null,null,null,null,"URZĄD SKARBOWY W PRZASNYSZU","1422"]
[null,null,null,null,null,null,null,null,null,null,null,null,null,null,null,null,null,null,null,null,null,null,null,null,null,null,"URZĄD SKARBOWY W PRZEMYŚLU","1813"]
[null,null,null,null,null,null,null,null,null,null,null,null,null,null,null,null,null,null,null,null,null,null,null,null,null,null,"URZĄD SKARBOWY W PRZEWORSKU","1814"]
[null,null,null,null,null,null,null,null,null,null,null,null,null,null,null,null,null,null,null,null,null,null,null,null,null,null,"URZĄD SKARBOWY W PRZYSUSZE","1448"]
[null,null,null,null,null,null,null,null,null,null,null,null,null,null,null,null,null,null,null,null,null,null,null,null,null,null,"URZĄD SKARBOWY W PSZCZYNIE","2424"]
[null,null,null,null,null,null,null,null,null,null,null,null,null,null,null,null,null,null,null,null,null,null,null,null,null,null,"URZĄD SKARBOWY W PUCKU","2215"]
[null,null,null,null,null,null,null,null,null,null,null,null,null,null,null,null,null,null,null,null,null,null,null,null,null,null,"URZĄD SKARBOWY W PUŁAWACH","0616"]
[null,null,null,null,null,null,null,null,null,null,null,null,null,null,null,null,null,null,null,null,null,null,null,null,null,null,"URZĄD SKARBOWY W PUŁTUSKU","1423"]
[null,null,null,null,null,null,null,null,null,null,null,null,null,null,null,null,null,null,null,null,null,null,null,null,null,null,"URZĄD SKARBOWY W PYRZYCACH","3213"]
[null,null,null,null,null,null,null,null,null,null,null,null,null,null,null,null,null,null,null,null,null,null,null,null,null,null,"URZĄD SKARBOWY W RACIBORZU","2425"]
[null,null,null,null,null,null,null,null,null,null,null,null,null,null,null,null,null,null,null,null,null,null,null,null,null,null,"PIERWSZY URZĄD SKARBOWY W RADOMIU","1424"]
[null,null,null,null,null,null,null,null,null,null,null,null,null,null,null,null,null,null,null,null,null,null,null,null,null,null,"DRUGI URZĄD SKARBOWY W RADOMIU","1425"]
[null,null,null,null,null,null,null,null,null,null,null,null,null,null,null,null,null,null,null,null,null,null,null,null,null,null,"TRZECI MAZOWIECKI URZĄD SKARBOWY W RADOMIU","1473"]
[null,null,null,null,null,null,null,null,null,null,null,null,null,null,null,null,null,null,null,null,null,null,null,null,null,null,"URZĄD SKARBOWY W RADOMSKU","1019"]
[null,null,null,null,null,null,null,null,null,null,null,null,null,null,null,null,null,null,null,null,null,null,null,null,null,null,"URZĄD SKARBOWY W RADZIEJOWIE","0413"]
[null,null,null,null,null,null,null,null,null,null,null,null,null,null,null,null,null,null,null,null,null,null,null,null,null,null,"URZĄD SKARBOWY W RADZYNIU PODLASKIM","0617"]
[null,null,null,null,null,null,null,null,null,null,null,null,null,null,null,null,null,null,null,null,null,null,null,null,null,null,"URZĄD SKARBOWY W RAWICZU","3027"]
[null,null,null,null,null,null,null,null,null,null,null,null,null,null,null,null,null,null,null,null,null,null,null,null,null,null,"URZĄD SKARBOWY W RAWIE MAZOWIECKIEJ","1020"]
[null,null,null,null,null,null,null,null,null,null,null,null,null,null,null,null,null,null,null,null,null,null,null,null,null,null,"URZĄD SKARBOWY W ROPCZYCACH","1815"]
[null,null,null,null,null,null,null,null,null,null,null,null,null,null,null,null,null,null,null,null,null,null,null,null,null,null,"URZĄD SKARBOWY W RUDZIE ŚLĄSKIEJ","2426"]
[null,null,null,null,null,null,null,null,null,null,null,null,null,null,null,null,null,null,null,null,null,null,null,null,null,null,"URZĄD SKARBOWY W RYBNIKU","2427"]
[null,null,null,null,null,null,null,null,null,null,null,null,null,null,null,null,null,null,null,null,null,null,null,null,null,null,"URZĄD SKARBOWY W RYKACH","0622"]
[null,null,null,null,null,null,null,null,null,null,null,null,null,null,null,null,null,null,null,null,null,null,null,null,null,null,"URZĄD SKARBOWY W RYPINIE","0414"]
[null,null,null,null,null,null,null,null,null,null,null,null,null,null,null,null,null,null,null,null,null,null,null,null,null,null,"PIERWSZY URZĄD SKARBOWY W RZESZOWIE","1816"]
[null,null,null,null,null,null,null,null,null,null,null,null,null,null,null,null,null,null,null,null,null,null,null,null,null,null,"DRUGI URZĄD SKARBOWY W RZESZOWIE","1822"]
[null,null,null,null,null,null,null,null,null,null,null,null,null,null,null,null,null,null,null,null,null,null,null,null,null,null,"PODKARPACKI URZĄD SKARBOWY W RZESZOWIE","1871"]
[null,null,null,null,null,null,null,null,null,null,null,null,null,null,null,null,null,null,null,null,null,null,null,null,null,null,"URZĄD SKARBOWY W SANDOMIERZU","2610"]
[null,null,null,null,null,null,null,null,null,null,null,null,null,null,null,null,null,null,null,null,null,null,null,null,null,null,"URZĄD SKARBOWY W SANOKU","1817"]
[null,null,null,null,null,null,null,null,null,null,null,null,null,null,null,null,null,null,null,null,null,null,null,null,null,null,"URZĄD SKARBOWY W SĘPÓLNIE KRAJEŃSKIM","0423"]
[null,null,null,null,null,null,null,null,null,null,null,null,null,null,null,null,null,null,null,null,null,null,null,null,null,null,"URZĄD SKARBOWY W SIEDLCACH","1426"]
[null,null,null,null,null,null,null,null,null,null,null,null,null,null,null,null,null,null,null,null,null,null,null,null,null,null,"URZĄD SKARBOWY W SIEMIANOWICACH ŚLĄSKICH","2428"]
[null,null,null,null,null,null,null,null,null,null,null,null,null,null,null,null,null,null,null,null,null,null,null,null,null,null,"URZĄD SKARBOWY W SIEMIATYCZACH","2010"]
[null,null,null,null,null,null,null,null,null,null,null,null,null,null,null,null,null,null,null,null,null,null,null,null,null,null,"URZĄD SKARBOWY W SIERADZU","1021"]
[null,null,null,null,null,null,null,null,null,null,null,null,null,null,null,null,null,null,null,null,null,null,null,null,null,null,"URZĄD SKARBOWY W SIERPCU","1427"]
[null,null,null,null,null,null,null,null,null,null,null,null,null,null,null,null,null,null,null,null,null,null,null,null,null,null,"URZĄD SKARBOWY W SKARŻYSKU-KAMIENNEJ","2611"]
[null,null,null,null,null,null,null,null,null,null,null,null,null,null,null,null,null,null,null,null,null,null,null,null,null,null,"URZĄD SKARBOWY W SKIERNIEWICACH","1022"]
[null,null,null,null,null,null,null,null,null,null,null,null,null,null,null,null,null,null,null,null,null,null,null,null,null,null,"URZĄD SKARBOWY W SŁUBICACH","0806"]
[null,null,null,null,null,null,null,null,null,null,null,null,null,null,null,null,null,null,null,null,null,null,null,null,null,null,"URZĄD SKARBOWY W SŁUPCY","3028"]
[null,null,null,null,null,null,null,null,null,null,null,null,null,null,null,null,null,null,null,null,null,null,null,null,null,null,"URZĄD SKARBOWY W SŁUPSKU","2216"]
[null,null,null,null,null,null,null,null,null,null,null,null,null,null,null,null,null,null,null,null,null,null,null,null,null,null,"URZĄD SKARBOWY W SOCHACZEWIE","1428"]
[null,null,null,null,null,null,null,null,null,null,null,null,null,null,null,null,null,null,null,null,null,null,null,null,null,null,"URZĄD SKARBOWY W SOKOŁOWIE PODLASKIM","1429"]
[null,null,null,null,null,null,null,null,null,null,null,null,null,null,null,null,null,null,null,null,null,null,null,null,null,null,"URZĄD SKARBOWY W SOKÓŁCE","2011"]
[null,null,null,null,null,null,null,null,null,null,null,null,null,null,null,null,null,null,null,null,null,null,null,null,null,null,"URZĄD SKARBOWY W SOPOCIE","2217"]
[null,null,null,null,null,null,null,null,null,null,null,null,null,null,null,null,null,null,null,null,null,null,null,null,null,null,"URZĄD SKARBOWY W SOSNOWCU","2429"]
[null,null,null,null,null,null,null,null,null,null,null,null,null,null,null,null,null,null,null,null,null,null,null,null,null,null,"PIERWSZY ŚLĄSKI URZĄD SKARBOWY W SOSNOWCU","2471"]
[null,null,null,null,null,null,null,null,null,null,null,null,null,null,null,null,null,null,null,null,null,null,null,null,null,null,"URZĄD SKARBOWY W STALOWEJ WOLI","1818"]
[null,null,null,null,null,null,null,null,null,null,null,null,null,null,null,null,null,null,null,null,null,null,null,null,null,null,"URZĄD SKARBOWY W STARACHOWICACH","2612"]
[null,null,null,null,null,null,null,null,null,null,null,null,null,null,null,null,null,null,null,null,null,null,null,null,null,null,"URZĄD SKARBOWY W STARGARDZIE","3214"]
[null,null,null,null,null,null,null,null,null,null,null,null,null,null,null,null,null,null,null,null,null,null,null,null,null,null,"URZĄD SKARBOWY W STAROGARDZIE GDAŃSKIM","2218"]
[null,null,null,null,null,null,null,null,null,null,null,null,null,null,null,null,null,null,null,null,null,null,null,null,null,null,"URZĄD SKARBOWY W STASZOWIE","2613"]
[null,null,null,null,null,null,null,null,null,null,null,null,null,null,null,null,null,null,null,null,null,null,null,null,null,null,"URZĄD SKARBOWY W STRZELCACH OPOLSKICH","1612"]
[null,null,null,null,null,null,null,null,null,null,null,null,null,null,null,null,null,null,null,null,null,null,null,null,null,null,"URZĄD SKARBOWY W STRZELINIE","0218"]
[null,null,null,null,null,null,null,null,null,null,null,null,null,null,null,null,null,null,null,null,null,null,null,null,null,null,"URZĄD SKARBOWY W STRZYŻOWIE","1819"]
[null,null,null,null,null,null,null,null,null,null,null,null,null,null,null,null,null,null,null,null,null,null,null,null,null,null,"URZĄD SKARBOWY W SUCHEJ BESKIDZKIEJ","1222"]
[null,null,null,null,null,null,null,null,null,null,null,null,null,null,null,null,null,null,null,null,null,null,null,null,null,null,"URZĄD SKARBOWY W SULĘCINIE","0813"]
[null,null,null,null,null,null,null,null,null,null,null,null,null,null,null,null,null,null,null,null,null,null,null,null,null,null,"URZĄD SKARBOWY W SUWAŁKACH","2012"]
[null,null,null,null,null,null,null,null,null,null,null,null,null,null,null,null,null,null,null,null,null,null,null,null,null,null,"URZĄD SKARBOWY W SZAMOTUŁACH","3029"]
[null,null,null,null,null,null,null,null,null,null,null,null,null,null,null,null,null,null,null,null,null,null,null,null,null,null,"PIERWSZY URZĄD SKARBOWY W SZCZECINIE","3215"]
[null,null,null,null,null,null,null,null,null,null,null,null,null,null,null,null,null,null,null,null,null,null,null,null,null,null,"DRUGI URZĄD SKARBOWY W SZCZECINIE","3216"]
[null,null,null,null,null,null,null,null,null,null,null,null,null,null,null,null,null,null,null,null,null,null,null,null,null,null,"TRZECI URZĄD SKARBOWY W SZCZECINIE","3217"]
[null,null,null,null,null,null,null,null,null,null,null,null,null,null,null,null,null,null,null,null,null,null,null,null,null,null,"ZACHODNIOPOMORSKI URZĄD SKARBOWY W SZCZECINIE","3271"]
[null,null,null,null,null,null,null,null,null,null,null,null,null,null,null,null,null,null,null,null,null,null,null,null,null,null,"URZĄD SKARBOWY W SZCZECINKU","3218"]
[null,null,null,null,null,null,null,null,null,null,null,null,null,null,null,null,null,null,null,null,null,null,null,null,null,null,"URZĄD SKARBOWY W SZCZYTNIE","2816"]
[null,null,null,null,null,null,null,null,null,null,null,null,null,null,null,null,null,null,null,null,null,null,null,null,null,null,"URZĄD SKARBOWY W SZYDŁOWCU","1430"]
[null,null,null,null,null,null,null,null,null,null,null,null,null,null,null,null,null,null,null,null,null,null,null,null,null,null,"URZĄD SKARBOWY W ŚREMIE","3030"]
[null,null,null,null,null,null,null,null,null,null,null,null,null,null,null,null,null,null,null,null,null,null,null,null,null,null,"URZĄD SKARBOWY W ŚRODZIE ŚLĄSKIEJ","0219"]
[null,null,null,null,null,null,null,null,null,null,null,null,null,null,null,null,null,null,null,null,null,null,null,null,null,null,"URZĄD SKARBOWY W ŚRODZIE WIELKOPOLSKIEJ","3031"]
[null,null,null,null,null,null,null,null,null,null,null,null,null,null,null,null,null,null,null,null,null,null,null,null,null,null,"URZĄD SKARBOWY W ŚWIDNICY","0220"]
[null,null,null,null,null,null,null,null,null,null,null,null,null,null,null,null,null,null,null,null,null,null,null,null,null,null,"URZĄD SKARBOWY W ŚWIEBODZINIE","0807"]
[null,null,null,null,null,null,null,null,null,null,null,null,null,null,null,null,null,null,null,null,null,null,null,null,null,null,"URZĄD SKARBOWY W ŚWIECIU","0415"]
[null,null,null,null,null,null,null,null,null,null,null,null,null,null,null,null,null,null,null,null,null,null,null,null,null,null,"ŚWIĘTOKRZYSKI URZĄD SKARBOWY W KIELCACH","2671"]
[null,null,null,null,null,null,null,null,null,null,null,null,null,null,null,null,null,null,null,null,null,null,null,null,null,null,"URZĄD SKARBOWY W ŚWINOUJŚCIU","3219"]
[null,null,null,null,null,null,null,null,null,null,null,null,null,null,null,null,null,null,null,null,null,null,null,null,null,null,"URZĄD SKARBOWY W TARNOBRZEGU","1820"]
[null,null,null,null,null,null,null,null,null,null,null,null,null,null,null,null,null,null,null,null,null,null,null,null,null,null,"PIERWSZY URZĄD SKARBOWY W TARNOWIE","1223"]
[null,null,null,null,null,null,null,null,null,null,null,null,null,null,null,null,null,null,null,null,null,null,null,null,null,null,"DRUGI URZĄD SKARBOWY W TARNOWIE","1224"]
[null,null,null,null,null,null,null,null,null,null,null,null,null,null,null,null,null,null,null,null,null,null,null,null,null,null,"URZĄD SKARBOWY W TARNOWSKICH GÓRACH","2430"]
[null,null,null,null,null,null,null,null,null,null,null,null,null,null,null,null,null,null,null,null,null,null,null,null,null,null,"URZĄD SKARBOWY W TCZEWIE","2219"]
[null,null,null,null,null,null,null,null,null,null,null,null,null,null,null,null,null,null,null,null,null,null,null,null,null,null,"URZĄD SKARBOWY W TOMASZOWIE LUBELSKIM","0618"]
[null,null,null,null,null,null,null,null,null,null,null,null,null,null,null,null,null,null,null,null,null,null,null,null,null,null,"URZĄD SKARBOWY W TOMASZOWIE MAZOWIECKIM","1023"]
[null,null,null,null,null,null,null,null,null,null,null,null,null,null,null,null,null,null,null,null,null,null,null,null,null,null,"PIERWSZY URZĄD SKARBOWY W TORUNIU","0416"]
[null,null,null,null,null,null,null,null,null,null,null,null,null,null,null,null,null,null,null,null,null,null,null,null,null,null,"DRUGI URZĄD SKARBOWY W TORUNIU","0417"]
[null,null,null,null,null,null,null,null,null,null,null,null,null,null,null,null,null,null,null,null,null,null,null,null,null,null,"URZĄD SKARBOWY W TRZEBNICY","0221"]
[null,null,null,null,null,null,null,null,null,null,null,null,null,null,null,null,null,null,null,null,null,null,null,null,null,null,"URZĄD SKARBOWY W TUCHOLI","0418"]
[null,null,null,null,null,null,null,null,null,null,null,null,null,null,null,null,null,null,null,null,null,null,null,null,null,null,"URZĄD SKARBOWY W TURKU","3032"]
[null,null,null,null,null,null,null,null,null,null,null,null,null,null,null,null,null,null,null,null,null,null,null,null,null,null,"URZĄD SKARBOWY W TYCHACH","2431"]
[null,null,null,null,null,null,null,null,null,null,null,null,null,null,null,null,null,null,null,null,null,null,null,null,null,null,"URZĄD SKARBOWY W USTRZYKACH DOLNYCH","1821"]
[null,null,null,null,null,null,null,null,null,null,null,null,null,null,null,null,null,null,null,null,null,null,null,null,null,null,"URZĄD SKARBOWY W WADOWICACH","1225"]
[null,null,null,null,null,null,null,null,null,null,null,null,null,null,null,null,null,null,null,null,null,null,null,null,null,null,"URZĄD SKARBOWY W WAŁBRZYCHU","0222"]
[null,null,null,null,null,null,null,null,null,null,null,null,null,null,null,null,null,null,null,null,null,null,null,null,null,null,"URZĄD SKARBOWY W WAŁCZU","3220"]
[null,null,null,null,null,null,null,null,null,null,null,null,null,null,null,null,null,null,null,null,null,null,null,null,null,null,"URZĄD SKARBOWY WARSZAWA-BEMOWO","1431"]
[null,null,null,null,null,null,null,null,null,null,null,null,null,null,null,null,null,null,null,null,null,null,null,null,null,null,"URZĄD SKARBOWY WARSZAWA-BIELANY","1432"]
[null,null,null,null,null,null,null,null,null,null,null,null,null,null,null,null,null,null,null,null,null,null,null,null,null,null,"URZĄD SKARBOWY WARSZAWA-MOKOTÓW","1433"]
[null,null,null,null,null,null,null,null,null,null,null,null,null,null,null,null,null,null,null,null,null,null,null,null,null,null,"URZĄD SKARBOWY WARSZAWA-PRAGA","1434"]
[null,null,null,null,null,null,null,null,null,null,null,null,null,null,null,null,null,null,null,null,null,null,null,null,null,null,"PIERWSZY URZĄD SKARBOWY WARSZAWA-ŚRÓDMIEŚCIE","1435"]
[null,null,null,null,null,null,null,null,null,null,null,null,null,null,null,null,null,null,null,null,null,null,null,null,null,null,"DRUGI URZĄD SKARBOWY WARSZAWA-ŚRÓDMIEŚCIE","1436"]
[null,null,null,null,null,null,null,null,null,null,null,null,null,null,null,null,null,null,null,null,null,null,null,null,null,null,"TRZECI URZĄD SKARBOWY WARSZAWA-ŚRÓDMIEŚCIE","1449"]
[null,null,null,null,null,null,null,null,null,null,null,null,null,null,null,null,null,null,null,null,null,null,null,null,null,null,"URZĄD SKARBOWY WARSZAWA-TARGÓWEK","1437"]
[null,null,null,null,null,null,null,null,null,null,null,null,null,null,null,null,null,null,null,null,null,null,null,null,null,null,"URZĄD SKARBOWY WARSZAWA-URSYNÓW","1438"]
[null,null,null,null,null,null,null,null,null,null,null,null,null,null,null,null,null,null,null,null,null,null,null,null,null,null,"URZĄD SKARBOWY WARSZAWA-WAWER","1439"]
[null,null,null,null,null,null,null,null,null,null,null,null,null,null,null,null,null,null,null,null,null,null,null,null,null,null,"URZĄD SKARBOWY WARSZAWA-WOLA","1440"]
[null,null,null,null,null,null,null,null,null,null,null,null,null,null,null,null,null,null,null,null,null,null,null,null,null,null,"PIERWSZY MAZOWIECKI URZĄD SKARBOWY W WARSZAWIE","1471"]
[null,null,null,null,null,null,null,null,null,null,null,null,null,null,null,null,null,null,null,null,null,null,null,null,null,null,"DRUGI MAZOWIECKI URZĄD SKARBOWY W WARSZAWIE","1472"]
[null,null,null,null,null,null,null,null,null,null,null,null,null,null,null,null,null,null,null,null,null,null,null,null,null,null,"URZĄD SKARBOWY W WĄBRZEŹNIE","0419"]
[null,null,null,null,null,null,null,null,null,null,null,null,null,null,null,null,null,null,null,null,null,null,null,null,null,null,"URZĄD SKARBOWY W WĄGROWCU","3033"]
[null,null,null,null,null,null,null,null,null,null,null,null,null,null,null,null,null,null,null,null,null,null,null,null,null,null,"URZĄD SKARBOWY W WĘGROWIE","1441"]
[null,null,null,null,null,null,null,null,null,null,null,null,null,null,null,null,null,null,null,null,null,null,null,null,null,null,"URZĄD SKARBOWY W WIELICZCE","1226"]
[null,null,null,null,null,null,null,null,null,null,null,null,null,null,null,null,null,null,null,null,null,null,null,null,null,null,"URZĄD SKARBOWY W WIELUNIU","1024"]
[null,null,null,null,null,null,null,null,null,null,null,null,null,null,null,null,null,null,null,null,null,null,null,null,null,null,"URZĄD SKARBOWY W WIERUSZOWIE","1027"]
[null,null,null,null,null,null,null,null,null,null,null,null,null,null,null,null,null,null,null,null,null,null,null,null,null,null,"URZĄD SKARBOWY WE WŁOCŁAWKU","0420"]
[null,null,null,null,null,null,null,null,null,null,null,null,null,null,null,null,null,null,null,null,null,null,null,null,null,null,"URZĄD SKARBOWY WE WŁODAWIE","0619"]
[null,null,null,null,null,null,null,null,null,null,null,null,null,null,null,null,null,null,null,null,null,null,null,null,null,null,"URZĄD SKARBOWY WE WŁOSZCZOWIE","2615"]
[null,null,null,null,null,null,null,null,null,null,null,null,null,null,null,null,null,null,null,null,null,null,null,null,null,null,"URZĄD SKARBOWY W WODZISŁAWIU ŚLĄSKIM","2432"]
[null,null,null,null,null,null,null,null,null,null,null,null,null,null,null,null,null,null,null,null,null,null,null,null,null,null,"URZĄD SKARBOWY W WOLSZTYNIE","3034"]
[null,null,null,null,null,null,null,null,null,null,null,null,null,null,null,null,null,null,null,null,null,null,null,null,null,null,"URZĄD SKARBOWY W WOŁOMINIE","1442"]
[null,null,null,null,null,null,null,null,null,null,null,null,null,null,null,null,null,null,null,null,null,null,null,null,null,null,"URZĄD SKARBOWY W WOŁOWIE","0223"]
[null,null,null,null,null,null,null,null,null,null,null,null,null,null,null,null,null,null,null,null,null,null,null,null,null,null,"PIERWSZY URZĄD SKARBOWY WE WROCŁAWIU","0229"]
[null,null,null,null,null,null,null,null,null,null,null,null,null,null,null,null,null,null,null,null,null,null,null,null,null,null,"URZĄD SKARBOWY WROCŁAW-FABRYCZNA","0224"]
[null,null,null,null,null,null,null,null,null,null,null,null,null,null,null,null,null,null,null,null,null,null,null,null,null,null,"URZĄD SKARBOWY WROCŁAW-KRZYKI","0225"]
[null,null,null,null,null,null,null,null,null,null,null,null,null,null,null,null,null,null,null,null,null,null,null,null,null,null,"URZĄD SKARBOWY WROCŁAW-PSIE POLE","0226"]
[null,null,null,null,null,null,null,null,null,null,null,null,null,null,null,null,null,null,null,null,null,null,null,null,null,null,"URZĄD SKARBOWY WROCŁAW-STARE MIASTO","0227"]
[null,null,null,null,null,null,null,null,null,null,null,null,null,null,null,null,null,null,null,null,null,null,null,null,null,null,"URZĄD SKARBOWY WROCŁAW-ŚRÓDMIEŚCIE","0228"]
[null,null,null,null,null,null,null,null,null,null,null,null,null,null,null,null,null,null,null,null,null,null,null,null,null,null,"DOLNOŚLĄSKI URZĄD SKARBOWY WE WROCŁAWIU","0271"]
[null,null,null,null,null,null,null,null,null,null,null,null,null,null,null,null,null,null,null,null,null,null,null,null,null,null,"URZĄD SKARBOWY WE WRZEŚNI","3035"]
[null,null,null,null,null,null,null,null,null,null,null,null,null,null,null,null,null,null,null,null,null,null,null,null,null,null,"URZĄD SKARBOWY WE WSCHOWIE","0814"]
[null,null,null,null,null,null,null,null,null,null,null,null,null,null,null,null,null,null,null,null,null,null,null,null,null,null,"URZĄD SKARBOWY W WYSOKIEM MAZOWIECKIEM","2013"]
[null,null,null,null,null,null,null,null,null,null,null,null,null,null,null,null,null,null,null,null,null,null,null,null,null,null,"URZĄD SKARBOWY W WYSZKOWIE","1443"]
[null,null,null,null,null,null,null,null,null,null,null,null,null,null,null,null,null,null,null,null,null,null,null,null,null,null,"URZĄD SKARBOWY W ZABRZU","2433"]
[null,null,null,null,null,null,null,null,null,null,null,null,null,null,null,null,null,null,null,null,null,null,null,null,null,null,"URZĄD SKARBOWY W ZAKOPANEM","1227"]
[null,null,null,null,null,null,null,null,null,null,null,null,null,null,null,null,null,null,null,null,null,null,null,null,null,null,"URZĄD SKARBOWY W ZAMBROWIE","2014"]
[null,null,null,null,null,null,null,null,null,null,null,null,null,null,null,null,null,null,null,null,null,null,null,null,null,null,"URZĄD SKARBOWY W ZAMOŚCIU","0620"]
[null,null,null,null,null,null,null,null,null,null,null,null,null,null,null,null,null,null,null,null,null,null,null,null,null,null,"URZĄD SKARBOWY W ZAWIERCIU","2434"]
[null,null,null,null,null,null,null,null,null,null,null,null,null,null,null,null,null,null,null,null,null,null,null,null,null,null,"URZĄD SKARBOWY W ZĄBKOWICACH ŚLĄSKICH","0230"]
[null,null,null,null,null,null,null,null,null,null,null,null,null,null,null,null,null,null,null,null,null,null,null,null,null,null,"URZĄD SKARBOWY W ZDUŃSKIEJ WOLI","1025"]
[null,null,null,null,null,null,null,null,null,null,null,null,null,null,null,null,null,null,null,null,null,null,null,null,null,null,"URZĄD SKARBOWY W ZGIERZU","1026"]
[null,null,null,null,null,null,null,null,null,null,null,null,null,null,null,null,null,null,null,null,null,null,null,null,null,null,"URZĄD SKARBOWY W ZGORZELCU","0231"]
[null,null,null,null,null,null,null,null,null,null,null,null,null,null,null,null,null,null,null,null,null,null,null,null,null,null,"PIERWSZY URZĄD SKARBOWY W ZIELONEJ GÓRZE","0808"]
[null,null,null,null,null,null,null,null,null,null,null,null,null,null,null,null,null,null,null,null,null,null,null,null,null,null,"DRUGI URZĄD SKARBOWY W ZIELONEJ GÓRZE","0809"]
[null,null,null,null,null,null,null,null,null,null,null,null,null,null,null,null,null,null,null,null,null,null,null,null,null,null,"LUBUSKI URZĄD SKARBOWY W ZIELONEJ GÓRZE","0871"]
[null,null,null,null,null,null,null,null,null,null,null,null,null,null,null,null,null,null,null,null,null,null,null,null,null,null,"URZĄD SKARBOWY W ZŁOTORYI","0232"]
[null,null,null,null,null,null,null,null,null,null,null,null,null,null,null,null,null,null,null,null,null,null,null,null,null,null,"URZĄD SKARBOWY W ZŁOTOWIE","3036"]
[null,null,null,null,null,null,null,null,null,null,null,null,null,null,null,null,null,null,null,null,null,null,null,null,null,null,"URZĄD SKARBOWY W ZWOLENIU","1444"]
[null,null,null,null,null,null,null,null,null,null,null,null,null,null,null,null,null,null,null,null,null,null,null,null,null,null,"URZĄD SKARBOWY W ŻAGANIU","0810"]
[null,null,null,null,null,null,null,null,null,null,null,null,null,null,null,null,null,null,null,null,null,null,null,null,null,null,"URZĄD SKARBOWY W ŻARACH","0811"]
[null,null,null,null,null,null,null,null,null,null,null,null,null,null,null,null,null,null,null,null,null,null,null,null,null,null,"URZĄD SKARBOWY W ŻNINIE","0421"]
[null,null,null,null,null,null,null,null,null,null,null,null,null,null,null,null,null,null,null,null,null,null,null,null,null,null,"URZĄD SKARBOWY W ŻORACH","2435"]
[null,null,null,null,null,null,null,null,null,null,null,null,null,null,null,null,null,null,null,null,null,null,null,null,null,null,"URZĄD SKARBOWY W ŻUROMINIE","1445"]
[null,null,null,null,null,null,null,null,null,null,null,null,null,null,null,null,null,null,null,null,null,null,null,null,null,null,"URZĄD SKARBOWY W ŻYRARDOWIE","1446"]
[null,null,null,null,null,null,null,null,null,null,null,null,null,null,null,null,null,null,null,null,null,null,null,null,null,null,"URZĄD SKARBOWY W ŻYWCU","2436"]

{"sheet":"Faktury","index":1,"n_rows":6,"n_cols":57,"rows_kept":6,"cut":false,"hidden":false,"merged":[]}
["Trzyliterowy kod waluty (ISO-4217), w której faktura, zamówienie lub umowa zostały wystawione\n\n(Kliknij 2x)","Data wystawienia","Kolejny numer faktury, nadany w ramach jednej lub więcej serii, który w sposób jednoznaczny indentyfikuje fakturę","Imię i nazwisko lub nazwa nabywcy towarów lub usług. Pole opcjonalne dla przypadku określonego w art. 106e ust. 5 pkt 3 ustawy.\n\n","Adres nabywcy. Pole opcjonalne dla przypadków określonych w art. 106e ust. 5 pkt 3 ustawy oraz w § 3 pkt 2 i 4 rozporządzenia Ministra Finansów z dnia 3 grudnia 2013 r. w sprawie wystawiania faktur (Dz. U. z 2013 r., poz. 1485), a także § 3 pkt 2 i 4 rozporządzenia Ministra Finansów z dnia 29 października 2021 r. w sprawie wystawiania faktur (Dz. U. z 2021 r., poz. 1979)","Imię i nazwisko lub nazwa sprzedawcy towarów lub usług","Adres sprzedawcy","Kod (prefiks) podatnika VAT UE dla przypadków określonych w art. 97 ust. 10 pkt 2 i 3 ustawy oraz w przypadku, o którym mowa w art. 136 ust. 1 pkt 3 ustawy","Numer, za pomocą którego podatnik jest zidentyfikowany na potrzeby podatku, z zastrzeżeniem pkt 24 lit. a ustawy. Pole opcjonalne dla przypadku określonego w art. 106e ust. 4 pkt 2 ustawy. W przypadku faktur wystawianych w procedurze uproszczonej przez drugiego w kolejności podatnika, o którym mowa w art. 135 ust. 1 pkt 4 lit. b i c oraz ust. 2 ustawy, numer, o którym mowa w art. 136 ust. 1 pkt 3 ustawy","Kod (prefiks) nabywcy VAT UE, o którym mowa w art. 106e ust. 1 pkt 24 ustawy oraz w przypadku, o którym mowa w art. 136 ust. 1 pkt 4 ustawy","Numer, za pomocą którego nabywca towarów lub usług jest identyfikowany dla podatku lub podatku od wartości dodanej, pod którym otrzymał on towary lub usługi, z zastrzeżeniem art. 106e ust. 1 pkt 24 lit. b ustawy. Pole opcjonalne dla przypadku określonego w art. 106e ust. 5 pkt 2 ustawy. W przypadku faktur wystawianych w procedurze uproszczonej przez drugiego w kolejności podatnika, o którym mowa w art. 135 ust. 1 pkt 4 lit. b i c oraz ust. 2 ustawy, numer, o którym mowa w art. 136 ust. 1 pkt 4 ustawy","Data dokonania lub zakończenia dostawy towarów lub wykonania usługi lub data otrzymania zapłaty, o której mowa w art- 106b ust- 1 pkt 4, o ile taka data jest określona i różni się od daty wystawienia faktury","Suma wartości sprzedaży netto ze stawką podstawową - aktualnie 23% albo 22%, W przypadku faktur zaliczkowych, kwota zaliczki netto, W przypadku faktur korygujących, kwota różnicy, o której mowa w art, 106j ust, 2 pkt 5 ustawy","Kwota podatku od sumy wartości sprzedaży netto ze stawką podstawową - aktualnie 23% albo 22%, W przypadku faktur zaliczkowych, kwota podatku wyliczona według wzoru, o którym mowa w art, 106f ust, 1 pkt 3 ustawy, W przypadku faktur korygujących, kwota różnicy, o której mowa w art, 106j ust, 2 pkt 5 ustawy","W przypadku gdy faktura jest wystawiona w walucie obcej, kwota podatku od sumy wartości sprzedaży netto ze stawką podstawową, przeliczona zgodnie z art, 31a w związku z art, 106e ust, 11 ustawy - aktualnie 23% albo 22%, W przypadku faktur zaliczkowych, kwota podatku wyliczona według wzoru, o którym mowa w art, 106f ust, 1 pkt 3 ustawy, W przypadku faktur korygujących, kwota różnicy, o której mowa w art, 106j ust, 2 pkt 5 ustawy","Suma wartości sprzedaży netto ze stawką obniżoną pierwszą - aktualnie 8 % albo 7%, W przypadku faktur zaliczkowych, kwota zaliczki netto, W przypadku faktur korygujących, kwota różnicy, o której mowa w art, 106j ust, 2 pkt 5 ustawy","Kwota podatku od sumy wartości sprzedaży netto ze stawką obniżoną pierwszą - aktualnie 8% albo 7%, W przypadku faktur zaliczkowych, kwota podatku wyliczona według wzoru, o którym mowa w art, 106f ust, 1 pkt 3 ustawy, W przypadku faktur korygujących, kwota różnicy, o której mowa w art, 106j ust, 2 pkt 5 ustawy","W przypadku gdy faktura jest wystawiona w walucie obcej, kwota podatku od sumy wartości sprzedaży netto ze stawką obniżoną, przeliczona zgodnie z art, 31a w związku z art, 106e ust, 11 ustawy - aktualnie 8% albo 7%, W przypadku faktur zaliczkowych, kwota podatku wyliczona według wzoru, o którym mowa w art, 106f ust, 1 pkt 3 ustawy, W przypadku faktur korygujących, kwota różnicy, o której mowa w art, 106j ust, 2 pkt 5 ustawy","Suma wartości sprzedaży netto ze stawką obniżoną drugą - aktualnie 5%, W przypadku faktur zaliczkowych, kwota zaliczki netto, W przypadku faktur korygujących, kwota różnicy, o której mowa w art, 106j ust, 2 pkt 5 ustawy","Kwota podatku od sumy wartości sprzedaży netto ze stawką obniżoną drugą - aktualnie 5%, W przypadku faktur zaliczkowych, kwota podatku wyliczona według wzoru, o którym mowa w art, 106f ust, 1 pkt 3 ustawy, W przypadku faktur korygujących, kwota różnicy, o której mowa w art, 106j ust, 2 pkt 5 ustawy","W przypadku gdy faktura jest wystawiona w walucie obcej, kwota podatku od sumy wartości sprzedaży netto ze stawką obniżoną drugą, przeliczona zgodnie z art, 31a w związku z art, 106e ust, 11 ustawy - aktualnie 5%, W przypadku faktur zaliczkowych, kwota podatku wyliczona według wzoru, o którym mowa w art, 106f ust, 1 pkt 3 ustawy","Suma wartości sprzedaży netto ze stawką obniżoną trzecią w walucie, w której faktura została wystawiona - procedura odwrotnego obciążenia, dla której podatnikiem jest nabywca zgodnie z art, 17 ust, 1 pkt 7 i 8 ustawy oraz dla stawki podatku w przypadku ryczałtu dla taksówek osobowych, W przypadku faktur zaliczkowych, kwota zaliczki netto, W przypadku faktur korygujących, kwota różnicy, o której mowa w art, 106j ust, 2 pkt 5 ustawy","Kwota \"0\" dla procedury odwrotnego obciążenia, dla której podatnikiem jest nabywca zgodnie z art, 17 ust, 1 pkt 7 i 8 ustawy oraz kwota podatku od sumy wartości sprzedaży netto dla stawki podatku w walucie, w której faktura została wystawiona w przypadku ryczałtu dla taksówek osobowych, W przypadku faktur zaliczkowych, kwota podatku wyliczona według wzoru, o którym mowa w art, 106f ust, 1 pkt 3 ustawy, W przypadku faktur korygujących, kwota różnicy, o której mowa w art, 106j ust, 2 pkt 5 ustawy","W przypadku gdy faktura jest wystawiona w walucie obcej, kwota \"0\" dla procedury odwrotnego obciążenia, dla której podatnikiem jest nabywca zgodnie z art, 17 ust, 1 pkt 7 i 8 ustawy oraz kwota podatku od sumy wartości sprzedaży netto w walucie obcej dla stawki podatku w przypadku ryczałtu dla taksówek osobowych, przeliczona zgodnie z art, 31a w związku z art, 106e ust, 11 ustawy, W przypadku faktur zaliczkowych, kwota podatku wyliczona według wzoru, o którym mowa w art, 106f ust, 1 pkt 3 ustawy, W przypadku faktur korygujących, kwota różnicy, o której mowa w art, 106j ust, 2 pkt 5 ustawy","Suma wartości sprzedaży netto dla transakcji dostawy towarów oraz świadczenia usług poza terytorium kraju, W przypadku faktur zaliczkowych, kwota zaliczki netto, W przypadku faktur korygujących, kwota różnicy, o której mowa w art, 106j ust, 2 pkt 5 ustawy","Kwota podatku od wartości dodanej w przypadku procedur szczególnych, o których mowa w dziale XII w rozdziałach 6a, 7 i 9 ustawy","Suma wartości sprzedaży netto ze stawką 0%, W przypadku faktur zaliczkowych, kwota zaliczki netto, Pole opcjonalne dla przypadków określonych w art, 106e ust, 2 i 3, a także ust, 4 pkt 3 i ust, 5 pkt 1-3 ustawy, W przypadku faktur korygujących, kwota różnicy, o której mowa w art, 106j ust, 2 pkt 5 ustawy","Suma wartości sprzedaży zwolnionej, W przypadku faktur zaliczkowych, kwota zaliczki netto, Pola opcjonalne dla przypadków określonych w art, 106e ust, 2 i 3, a także ust, 4 pkt 3 i ust, 5 pkt 1-3 ustawy, W przypadku faktur korygujących, kwota różnicy, o której mowa w art, 106j ust, 2 pkt 5 ustawy","Kwota należności ogółem, W przypadku faktur zaliczkowych kwota zapłaty dokumentowana fakturą, W przypadku faktur, o których mowa w art, 106f ust, 3 ustawy kwota pozostała do zapłaty, W przypadku faktur korygujących korekta kwoty wynikającej z faktury korygowanej, W przypadku, o którym mowa w art, 106j ust, 3 ustawy korekta kwot wynikających z faktur korygowanych","W przypadku dostawy towarów lub świadczenia usług, w odniesieniu do których obowiązek podatkowy powstaje zgodnie z art. 19a ust. 5 pkt 1 lub art. 21 ust. 1 - wyrazy \"metoda kasowa\", należy podać wartość \"PRAWDA\"; w przeciwnym przypadku - wartość \"FAŁSZ\"","W przypadku faktur, o których mowa w art. 106d ust. 1 - wyraz \"samofakturowanie\", należy podać wartość \"PRAWDA\"; w przeciwnym przypadku - wartość - \"FAŁSZ\"","W przypadku dostawy towarów lub wykonania usługi, dla których obowiązanym do rozliczenia podatku od wartości dodanej lub podatku o podobnym charakterze jest nabywca towaru lub usługi - wyrazy \"odwrotne obciążenie\", należy podać wartość \"PRAWDA\", w przeciwnym przypadku - wartość \"FAŁSZ\"","W przypadku faktur, w których kwota należności ogółem przekracza kwotę 15 000 zł lub jej równowartość wyrażoną w walucie obcej, obejmujących dokonaną na rzecz podatnika dostawę towarów lub świadczenie usług, o których mowa w załączniku nr 15 do ustawy - wyrazy \"mechanizm podzielonej płatności\", przy czym do przeliczania na złote kwot wyrażonych w walucie obcej stosuje się zasady przeliczania kwot stosowane w celu określenia podstawy opodatkowania; należy podać wartość \"PRAWDA\", w przeciwnym przypadku - wartość \"FAŁSZ\"","W przypadku dostawy towarów lub świadczenia usług zwolnionych od podatku na podstawie art. 43 ust. 1, art. 113 ust. 1 i 9 albo przepisów wydanych na podstawie art. 82 ust. 3 należy podać wartość \"PRAWDA\", w przeciwnym przypadku - wartość \"FAŁSZ\"","Jeśli pole P_19 równa się \"PRAWDA\" - należy wskazać przepis ustawy albo aktu wydanego na podstawie ustawy, na podstawie którego podatnik stosuje zwolnienie od podatku","Jeśli pole P_19 równa się \"PRAWDA\" - należy wskazać przepis dyrektywy 2006/112/WE, który zwalnia od podatku taką dostawę towarów lub takie świadczenie usług","Jeśli pole P_19 równa się \"PRAWDA\" - należy wskazać inną podstawę prawną wskazującą na to, że dostawa towarów lub świadczenie usług korzysta ze zwolnienia","W przypadku, o którym mowa w art. 106c ustawy należy podać wartość \"PRAWDA\"; w przeciwnym przypadku - wartość - \"FAŁSZ\"","Jeśli pole P_20 równa się \"PRAWDA\" - należy podać nazwę organu egzekucyjnego lub imię i nazwisko komornika sądowego","Jeśli pole P_20 równa się \"PRAWDA\" - należy podać adres organu egzekucyjnego lub komornika sądowego","W przypadku faktur wystawianych w imieniu i na rzecz podatnika przez jego przedstawiciela podatkowego należy podać wartość \"PRAWDA\"; w przeciwnym przypadku - wartość - \"FAŁSZ\"","Jeśli pole P_21 równa się \"PRAWDA\" - należy podać nazwę lub imię i nazwisko przedstawiciela podatkowego","Jeśli pole P_21 równa się \"PRAWDA\" - należy podać adres przedstawiciela podatkowego","Jeśli pole P_21 równa się \"PRAWDA\" - należy podać numer przedstawiciela podatkowego, za pomocą którego jest on zidentyfikowany na potrzeby podatku","W przypadku gdy przedmiotem wewnątrzwspólnotowej dostawy są nowe środki transportu należy podać wartość \"PRAWDA\", w przeciwnym przypadku - wartość \"FAŁSZ\"","Jeśli pole P_22 równa się \"PRAWDA\" - należy podać datę dopuszczenia nowego środka transportu do użytku","Jeśli pole P_22 równa się \"PRAWDA\" a dostawa dotyczy pojazdów lądowych, o których mowa w art. 2 pkt 10 lit. a ustawy - należy podać przebieg pojazdu","Jeśli pole P_22 równa się \"PRAWDA\" a dostawa dotyczy jednostek pływających, o których mowa w art. 2 pkt 10 lit. b ustawy, oraz statków powietrznych, o których mowa w art. 2 pkt 10 lit. c ustawy, należy podać liczbę godzin roboczych używania nowego środka transportu","W przypadku faktur wystawianych w procedurze uproszczonej przez drugiego w kolejności podatnika, o którym mowa w art. 135 ust. 1 pkt 4 lit. b i c oraz ust. 2, zawierającej adnotację, o której mowa w art. 136 ust. 1 pkt 1 i stwierdzenie, o którym mowa w art. 136 ust. 1 pkt 2 ustawy należy podać wartość \"PRAWDA\", w przeciwnym przypadku - wartość \"FAŁSZ\"","W przypadku świadczenia usług turystyki, dla których podstawę opodatkowania stanowi zgodnie z art. 119 ust. 1 kwota marży, faktura - w zakresie danych określonych w ust. 1 pkt 1-17 - powinna zawierać wyłącznie dane określone w ust. 1 pkt 1-8 i 15-17, a także wyrazy \"procedura marży dla biur podróży\", należy podać wartość \"PRAWDA\"; w przeciwnym przypadku - wartość - \"FAŁSZ\"","W przypadku dostawy towarów używanych, dzieł sztuki, przedmiotów kolekcjonerskich i antyków, dla których podstawę opodatkowania stanowi zgodnie z art. 120 ust. 4 i 5 marża, należy podać wartość \"PRAWDA\", w przeciwnym przypadku - wartość \"FAŁSZ\"","Jeżeli pole P_106E_3 równa się \"PRAWDA\", należy podać wyrazy: \"procedura marży - towary używane\" lub \"procedura marży - dzieła sztuki\" lub \"procedura marży - przedmioty kolekcjonerskie i antyki\"","Rodzaj faktury: VAT - podstawowa; KOREKTA - korygująca; ZAL - faktura dokumentująca otrzymanie zapłaty lub jej części przed dokonaniem czynności oraz faktura wystawiona w związku z art. 106f ust. 4 ","Przyczyna korekty dla faktur korygujących","Numer faktury korygowanej","Dla faktury korygującej - okres, do którego odnosi się udzielany opust lub obniżka, w przypadku gdy podatnik udziela opustu lub obniżki ceny w odniesieniu do wszystkich dostaw towarów lub usług dokonanych lub świadczonych na rzecz jednego odbiorcy w danym okresie","Dla faktury, o której mowa w art. 106f ust. 3 i 4 ustawy - numery poprzednich faktur zaliczkowych"]
[{"$f":"COUNTA(A4:A1048576)","v":3},null,null,null,null,null,null,null,null,null,null,null,{"$f":"SUM(M4:M1048576)","v":300},69,0,300,24,0,300,15,0,0,0,0,0,0,0,0,693]
["KodWaluty","P_1","P_2A","P_3A","P_3B","P_3C","P_3D","P_4A","P_4B","P_5A","P_5B","P_6","P_13_1","P_14_1","P_14_1W","P_13_2","P_14_2","P_14_2W","P_13_3","P_14_3","P_14_3W","P_13_4","P_14_4","P_14_4W","P_13_5","P_14_5","P_13_6","P_13_7","P_15","P_16","P_17","P_18","P_18A","P_19","P_19A","P_19B","P_19C","P_20","P_20A","P_20B","P_21","P_21A","P_21B","P_21C","P_22","P_22A","P_22B","P_22C","P_23","P_106E_2","P_106E_3","P_106E_3A","RodzajFaktury","PrzyczynaKorekty","NrFaKorygowanej","OkresFaKorygowanej","NrFaZaliczkowej"]
["PLN","2022-04-05","45/11/2022","WASKO SP. Z O.O.","Ul. Mickiewicza 45, 05-123 Warszawa","WERA-REDUS SP. Z O.O.","45-456 POZNAŃ, ul. Stefana Batorego 15",null,"3945241941",null,null,"2022-04-05",100,23,null,100,8,null,100,5,null,null,null,null,null,null,null,null,231,"FAŁSZ","FAŁSZ","FAŁSZ","FAŁSZ","FAŁSZ",null,null,null,"FAŁSZ",null,null,"FAŁSZ",null,null,null,"FAŁSZ",null,null,null,"FAŁSZ","FAŁSZ","FAŁSZ",null,"VAT"]
["PLN","2022-04-06","46/11/2022","KATERING SP. J.","Ul. Słowackiego 12, 02-542 Warszawa","WERA-REDUS SP. Z O.O.","45-456 POZNAŃ, ul. Stefana Batorego 15",null,"1071970367",null,null,"2022-04-06",100,23,null,100,8,null,100,5,null,null,null,null,null,null,null,null,231,"FAŁSZ","FAŁSZ","FAŁSZ","FAŁSZ","FAŁSZ",null,null,null,"FAŁSZ",null,null,"FAŁSZ",null,null,null,"FAŁSZ",null,null,null,"FAŁSZ","FAŁSZ","FAŁSZ",null,"VAT"]
["PLN","2022-04-07","56/11/2022","ABC ADAM SP. KOM.","Ul. Puławska 75, 09-456 Warszawa","WERA-REDUS SP. Z O.O.","45-456 POZNAŃ, ul. Stefana Batorego 15",null,"1248141243",null,null,"2022-04-07",100,23,null,100,8,null,100,5,null,null,null,null,null,null,null,null,231,"FAŁSZ","FAŁSZ","FAŁSZ","FAŁSZ","FAŁSZ",null,null,null,"FAŁSZ",null,null,"FAŁSZ",null,null,null,"FAŁSZ",null,null,null,"FAŁSZ","FAŁSZ","PRAWDA","procedura marży - towary używane","VAT"]

{"sheet":"Faktury_wiersze","index":2,"n_rows":6,"n_cols":29,"rows_kept":6,"cut":false,"hidden":false,"merged":[]}
["Kolejny numer faktury, nadany w ramach jednej lub więcej serii, który w sposób jednoznaczny indentyfikuje fakturę","Nazwa (rodzaj) towaru lub usługi. Pole opcjonalne wyłącznie dla przypadku określonego w art 106j ust. 3 pkt 2 ustawy (faktura korekta)\n\n","\n\nMiara dostarczonych towarów lub zakres wykonanych usług. Pole opcjonalne dla przypadku określonego w art.  106e ust. 5 pkt 3 ustawy.","\n\nIlość (liczba) dostarczonych towarów lub zakres wykonanych usług. Pole opcjonalne dla przypadku określonego w art 106e ust. 5 pkt 3 ustawy","Cena jednostkowa towaru lub usługi bez kwoty podatku (cena jednostkowa netto), Pole opcjonalne dla przypadków określonych w art, 106e ust, 2 i 3 oraz ust, 5 pkt 3 ustawy","Cena wraz z kwotą podatku (cena jednostkowa brutto), w przypadku zastosowania art, 106e ust, 7 i 8 ustawy","Kwoty wszelkich opustów lub obniżek cen, w tym w formie rabatu z tytułu wcześniejszej zapłaty, o ile nie zostały one uwzględnione w cenie jednostkowej netto, Pole opcjonalne dla przypadków określonych w art, 106e ust, 2 i 3 oraz ust, 5 pkt 1 ustawy","Wartość dostarczonych towarów lub wykonanych usług, objętych transakcją, bez kwoty podatku (wartość sprzedaży netto), Pole opcjonalne dla przypadków określonych w art, 106e ust, 2 i 3 oraz ust, 5 pkt 3 ustawy","Wartość sprzedaży brutto, w przypadku zastosowania art, 106e ust, 7 i 8 ustawy","Stawka podatku. Pole opcjonalne dla przypadków określonych w art. 106e ust. 2, 3, 4 pkt 3 i ust. 5 pkt 3 ustawy","Stawka podatku od wartości dodanej w przypadku procedur szczególnych, o których mowa w dziale XII w rozdziałach 6a, 7 i 9 ustawy VAT"]
[{"$f":"COUNTA(A4:A1048576)","v":3},null,null,null,null,null,{"$f":"SUM(G4:G1048576)","v":0},{"$f":"SUM(H4:H1048576)","v":14800},{"$f":"SUM(I4:I1048576)","v":14800},null,null,null,null,{"$f":"SUM(N4:N1048576)","v":0},0,0,0,0,0,0,0,0,0,0,0,0,0,0,0]
["P_2B","P_7","P_8A","P_8B","P_9A","P_9B","P_10","P_11","P_11A","P_12","P_12_XII"]
["45/11/2022","Drzwi ognioodporne","szt.",2,4500,null,null,9000,9000,23,1]
["46/11/2022","Montaż okien","szt.",5,1250,null,null,5000,5000,23,2]
["56/11/2022","Malowanie ścian","sz.",1,800,null,null,800,800,23,1]

{"sheet":"Zamówienia_wiersze","index":3,"n_rows":6,"n_cols":29,"rows_kept":6,"cut":false,"hidden":false,"merged":[]}
["Numer faktury, z którym związane jest zamówienie lub umowa, identyczny jak w polu P_2A","Nazwa (rodzaj) towaru lub usługi","Miara zamówionego towaru lub zakres usługi","Ilość zamówionego towaru lub zakres usługi","Cena jednostkowa netto","Wartość zamówionego towaru lub usługi bez kwoty podatku","Kwota podatku od zamówionego towaru lub usługi","Stawka podatku","Stawka podatku od wartości dodanej w przypadku procedur szczególnych, o których mowa w dziale XII w rozdziałach 6a, 7 i 9 ustawy VAT"]
[null,null,null,null,null,{"$f":"SUM(F4:F1048576)","v":20050},{"$f":"SUM(G4:G1048576)","v":770},null,null,{"$f":"SUM(J4:J1048576)","v":"00:00:00"},null,null,null,{"$f":"SUM(N4:N1048576)","v":0},0,0,0,0,0,0,0,0,0,0,0,0,0,"=SUM(R[2]C:R[1048574]C)","=SUM(R[2]C:R[1048574]C)"]
["P_2AZ","P_7Z","P_8AZ","P_8BZ","P_9AZ","P_11NettoZ","P_11VatZ","P_12Z","P_12Z_XII"]
["45/11/2022","Drzwi ognioodporne",2,null,4500,9000,230,23,1]
["46/11/2022","Montaż okien",5,null,1250,10250,340,23,1]
["56/11/2022","Malowanie ścian",1,null,800,800,200,23]

{"sheet":"A","index":4,"n_rows":192,"n_cols":20,"rows_kept":192,"cut":false,"hidden":true,"merged":[]}
["2023-09-15",200,null,null,null,null,null,null,null,null,null,null,null,null,null,"FAŁSZ",null,"PLN","ZŁOTY","PLN EUR USD AED AFN ALL AMD ANG AOA ARS AUD AWG AZN BAM BBD BDT BGN BHD BIF BMD BND BOB BOV BRL BSD BTN BWP BYN BYR BZD CAD CDF CHE CHF CHW CLF CLP CNY COP COU CRC CUC CUP CVE CZK DJF DKK DOP DZD EEK EGP ERN ETB FJD FKP GBP GEL GGP GHS GIP GMD GNF GTQ GWP GYD HKD HNL HRK HTG HUF IDR ILS IMP INR IQD IRR ISK JEP JMD JOD JPY KES KGS KHR KMF KPW KRW KWD KYD KZT LAK LBP LKR LRD LSL LTL LVL LYD MAD MDL MGA MKD MMK MNT MOP MRO MRU MTL MUR MVR MWK MXN MXV MYR MZN NAD NGN NIO NOK NPR NZD OMR PAB PEN PGK PHP PKR PYG QAR RON RSD RUB RWF SAR SBD SCR SDG SEK SGD SHP SLL SOS SRD SSP STD STN SVC SYP SZL THB TJS TMT TND TOP TRY TTD TWD TZS UAH UGX USN USS UYI UYU UYW UZS VEF VES VND VUV WST XAF XAG XAU XBA XBB XBC XBD XCD XDR XFU XOF XPD XPF XPT XSU XUA XXX YER ZAR ZMW ZWL"]
["Licencja dla tego programu wygasła.  Signform.pl tel. 608 43 63 83\nPobierz nowy plik z serwisu signform.pl\n\n   biuro@signform.pl tel. 608 43 63 83",{"$f":"\"Liczba danych do zapisu w pliku XML przekracza\nlimit \"&B1&\" pozycji określony dla tej wersji programu.\nZapis danych XML został zatrzymany.\n\n            biuro@signform.pl tel. 608 43 63 83\"","v":"Liczba danych do zapisu w pliku XML przekracza\nlimit 200 pozycji określony dla tej wersji programu.\nZapis danych XML został zatrzymany.\n\n            biuro@signform.pl tel. 608 43 63 83"},null,null,null,null,null,null,null,null,null,null,null,null,null,null,null,"EUR","EURO"]
[null,null,null,null,null,null,null,null,null,null,null,null,null,null,null,null,null,"USD","DOLAR AMERYKAŃSKI"]
[null,null,null,null,null,null,null,null,null,null,null,null,null,null,null,null,null,"AED","DIRHAM ZEA"]
[null,null,null,null,null,null,null,null,null,null,null,null,null,null,null,null,null,"AFN","AFGANI"]
[null,null,null,null,null,null,null,null,null,null,null,null,null,null,null,null,null,"ALL","LEK"]
[null,null,null,null,null,null,null,null,null,null,null,null,null,null,null,null,null,"AMD","DRAM"]
[null,null,null,null,null,null,null,null,null,null,null,null,null,null,null,null,null,"ANG","GULDEN ANTYLI HOLENDERSKICH"]
[null,null,null,null,null,null,null,null,null,null,null,null,null,null,null,null,null,"AOA","KWANZA"]
[null,null,null,null,null,null,null,null,null,null,null,null,null,null,null,null,null,"ARS","PESO ARGENTYŃSKIE"]
[null,null,null,null,null,null,null,null,null,null,null,null,null,null,null,null,null,"AUD","DOLAR AUSTRALIJSKI"]
[null,null,null,null,null,null,null,null,null,null,null,null,null,null,null,null,null,"AWG","GULDEN ARUBAŃSKI"]
[null,null,null,null,null,null,null,null,null,null,null,null,null,null,null,null,null,"AZN","MANAT AZERBEJDŻAŃSKI"]
[null,null,null,null,null,null,null,null,null,null,null,null,null,null,null,null,null,"BAM","MARKA ZAMIENNA"]
[null,null,null,null,null,null,null,null,null,null,null,null,null,null,null,null,null,"BBD","DOLAR BARBADOSKI"]
[null,null,null,null,null,null,null,null,null,null,null,null,null,null,null,null,null,"BDT","TAKA"]
[null,null,null,null,null,null,null,null,null,null,null,null,null,null,null,null,null,"BGN","LEW"]
[null,null,null,null,null,null,null,null,null,null,null,null,null,null,null,null,null,"BHD","DINAR BAHRAJSKI"]
[null,null,null,null,null,null,null,null,null,null,null,null,null,null,null,null,null,"BIF","FRANK BURUNDYJSKI"]
[null,null,null,null,null,null,null,null,null,null,null,null,null,null,null,null,null,"BMD","DOLAR BERMUDZKI"]
[null,null,null,null,null,null,null,null,null,null,null,null,null,null,null,null,null,"BND","DOLAR BRUNEJSKI"]
[null,null,null,null,null,null,null,null,null,null,null,null,null,null,null,null,null,"BOB","BOLIWIANO"]
[null,null,null,null,null,null,null,null,null,null,null,null,null,null,null,null,null,"BOV","BOLIWIANO MVDOL"]
[null,null,null,null,null,null,null,null,null,null,null,null,null,null,null,null,null,"BRL","REAL"]
[null,null,null,null,null,null,null,null,null,null,null,null,null,null,null,null,null,"BSD","DOLAR BAHAMSKI"]
[null,null,null,null,null,null,null,null,null,null,null,null,null,null,null,null,null,"BTN","NGULTRUM"]
[null,null,null,null,null,null,null,null,null,null,null,null,null,null,null,null,null,"BWP","PULA"]
[null,null,null,null,null,null,null,null,null,null,null,null,null,null,null,null,null,"BYN","RUBEL BIAŁORUSKI"]
[null,null,null,null,null,null,null,null,null,null,null,null,null,null,null,null,null,"BYR","RUBEL BIAŁORUSKI HISTORYCZY"]
[null,null,null,null,null,null,null,null,null,null,null,null,null,null,null,null,null,"BZD","DOLAR BELIZEŃSKI"]
[null,null,null,null,null,null,null,null,null,null,null,null,null,null,null,null,null,"CAD","DOLAR KANADYJSKI"]
[null,null,null,null,null,null,null,null,null,null,null,null,null,null,null,null,null,"CDF","FRANK KONGIJSKI"]
[null,null,null,null,null,null,null,null,null,null,null,null,null,null,null,null,null,"CHE","FRANK SZWAJCARSKI WIR EURO"]
[null,null,null,null,null,null,null,null,null,null,null,null,null,null,null,null,null,"CHF","FRANK SZWAJCARSKI"]
[null,null,null,null,null,null,null,null,null,null,null,null,null,null,null,null,null,"CHW","FRANK SZWAJCARSKI WIR FRANK"]
[null,null,null,null,null,null,null,null,null,null,null,null,null,null,null,null,null,"CLF","JEDNOSTKA ROZLICZENIOWA CHILIJSKA"]
[null,null,null,null,null,null,null,null,null,null,null,null,null,null,null,null,null,"CLP","PESO CHILIJSKIE"]
[null,null,null,null,null,null,null,null,null,null,null,null,null,null,null,null,null,"CNY","YUAN RENMINBI"]
[null,null,null,null,null,null,null,null,null,null,null,null,null,null,null,null,null,"COP","PESO KOLUMBIJSKIE"]
[null,null,null,null,null,null,null,null,null,null,null,null,null,null,null,null,null,"COU","UNIDAD DE VALOR REAL KOLUMBILSKIE"]
[null,null,null,null,null,null,null,null,null,null,null,null,null,null,null,null,null,"CRC","COLON KOSTARYKAŃSKI"]
[null,null,null,null,null,null,null,null,null,null,null,null,null,null,null,null,null,"CUC","PESO WYMIENIALNE"]
[null,null,null,null,null,null,null,null,null,null,null,null,null,null,null,null,null,"CUP","PESO KUBAŃSKIE"]
[null,null,null,null,null,null,null,null,null,null,null,null,null,null,null,null,null,"CVE","ESCUDO REPUBLIKI ZIELONEGO PRZYLĄDKA"]
[null,null,null,null,null,null,null,null,null,null,null,null,null,null,null,null,null,"CZK","KORONA CZESKA"]
[null,null,null,null,null,null,null,null,null,null,null,null,null,null,null,null,null,"DJF","FRANK DŻIBUTI"]
[null,null,null,null,null,null,null,null,null,null,null,null,null,null,null,null,null,"DKK","KORONA DUŃSKA"]
[null,null,null,null,null,null,null,null,null,null,null,null,null,null,null,null,null,"DOP","PESO DOMINIKAŃSKIE"]
[null,null,null,null,null,null,null,null,null,null,null,null,null,null,null,null,null,"DZD","DINAR ALGIERSKI"]
[null,null,null,null,null,null,null,null,null,null,null,null,null,null,null,null,null,"EEK","KORONA ESTOŃSKA HISTORYCZNA"]
[null,null,null,null,null,null,null,null,null,null,null,null,null,null,null,null,null,"EGP","FUNT EGIPSKI"]
[null,null,null,null,null,null,null,null,null,null,null,null,null,null,null,null,null,"ERN","NAKFA"]
[null,null,null,null,null,null,null,null,null,null,null,null,null,null,null,null,null,"ETB","BIRR"]
[null,null,null,null,null,null,null,null,null,null,null,null,null,null,null,null,null,"FJD","DOLAR FIDŻI"]
[null,null,null,null,null,null,null,null,null,null,null,null,null,null,null,null,null,"FKP","FUNT FALKLANDZKI"]
[null,null,null,null,null,null,null,null,null,null,null,null,null,null,null,null,null,"GBP","FUNT SZTERLING"]
[null,null,null,null,null,null,null,null,null,null,null,null,null,null,null,null,null,"GEL","LARI"]
[null,null,null,null,null,null,null,null,null,null,null,null,null,null,null,null,null,"GGP","FUNT GUERNSEY"]
[null,null,null,null,null,null,null,null,null,null,null,null,null,null,null,null,null,"GHS","GHANA CEDI"]
[null,null,null,null,null,null,null,null,null,null,null,null,null,null,null,null,null,"GIP","FUNT GIBRALTARSKI"]
[null,null,null,null,null,null,null,null,null,null,null,null,null,null,null,null,null,"GMD","DALASI"]
[null,null,null,null,null,null,null,null,null,null,null,null,null,null,null,null,null,"GNF","FRANK GWINEJSKI"]
[null,null,null,null,null,null,null,null,null,null,null,null,null,null,null,null,null,"GTQ","QUETZAL"]
[null,null,null,null,null,null,null,null,null,null,null,null,null,null,null,null,null,"GWP","PESO GWINEJSKIE-BISSAU HISTORYCZNE"]
[null,null,null,null,null,null,null,null,null,null,null,null,null,null,null,null,null,"GYD","DOLAR GUJAŃSKI"]
[null,null,null,null,null,null,null,null,null,null,null,null,null,null,null,null,null,"HKD","DOLAR HONGKONGU"]
[null,null,null,null,null,null,null,null,null,null,null,null,null,null,null,null,null,"HNL","LEMPIRA"]
[null,null,null,null,null,null,null,null,null,null,null,null,null,null,null,null,null,"HRK","KUNA"]
[null,null,null,null,null,null,null,null,null,null,null,null,null,null,null,null,null,"HTG","GOURDE"]
[null,null,null,null,null,null,null,null,null,null,null,null,null,null,null,null,null,"HUF","FORINT"]
[null,null,null,null,null,null,null,null,null,null,null,null,null,null,null,null,null,"IDR","RUPIA INDONEZYJSKA"]
[null,null,null,null,null,null,null,null,null,null,null,null,null,null,null,null,null,"ILS","SZEKEL"]
[null,null,null,null,null,null,null,null,null,null,null,null,null,null,null,null,null,"IMP","FUNT MANX"]
[null,null,null,null,null,null,null,null,null,null,null,null,null,null,null,null,null,"INR","RUPIA INDYJSKA"]
[null,null,null,null,null,null,null,null,null,null,null,null,null,null,null,null,null,"IQD","DINAR IRACKI"]
[null,null,null,null,null,null,null,null,null,null,null,null,null,null,null,null,null,"IRR","RIAL IRAŃSKI"]
[null,null,null,null,null,null,null,null,null,null,null,null,null,null,null,null,null,"ISK","KORONA ISLANDZKA"]
[null,null,null,null,null,null,null,null,null,null,null,null,null,null,null,null,null,"JEP","FUNT JERSEY"]
[null,null,null,null,null,null,null,null,null,null,null,null,null,null,null,null,null,"JMD","DOLAR JAMAJSKI"]
[null,null,null,null,null,null,null,null,null,null,null,null,null,null,null,null,null,"JOD","DINAR JORDAŃSKI"]
[null,null,null,null,null,null,null,null,null,null,null,null,null,null,null,null,null,"JPY","JEN"]
[null,null,null,null,null,null,null,null,null,null,null,null,null,null,null,null,null,"KES","SZYLING KENIJSKI"]
[null,null,null,null,null,null,null,null,null,null,null,null,null,null,null,null,null,"KGS","SOM"]
[null,null,null,null,null,null,null,null,null,null,null,null,null,null,null,null,null,"KHR","RIEL"]
[null,null,null,null,null,null,null,null,null,null,null,null,null,null,null,null,null,"KMF","FRANK KOMORÓW"]
[null,null,null,null,null,null,null,null,null,null,null,null,null,null,null,null,null,"KPW","WON PÓŁNOCNO­KOREAŃSKI"]
[null,null,null,null,null,null,null,null,null,null,null,null,null,null,null,null,null,"KRW","WON POŁUDNIOWO­KOREAŃSKI"]
[null,null,null,null,null,null,null,null,null,null,null,null,null,null,null,null,null,"KWD","DINAR KUWEJCKI"]
[null,null,null,null,null,null,null,null,null,null,null,null,null,null,null,null,null,"KYD","DOLAR KAJMAŃSKI"]
[null,null,null,null,null,null,null,null,null,null,null,null,null,null,null,null,null,"KZT","TENGE"]
[null,null,null,null,null,null,null,null,null,null,null,null,null,null,null,null,null,"LAK","KIP"]
[null,null,null,null,null,null,null,null,null,null,null,null,null,null,null,null,null,"LBP","FUNT LIBAŃSKI"]
[null,null,null,null,null,null,null,null,null,null,null,null,null,null,null,null,null,"LKR","RUPIA LANKIJSKA"]
[null,null,null,null,null,null,null,null,null,null,null,null,null,null,null,null,null,"LRD","DOLAR LIBERYJSKI"]
[null,null,null,null,null,null,null,null,null,null,null,null,null,null,null,null,null,"LSL","LOTI"]
[null,null,null,null,null,null,null,null,null,null,null,null,null,null,null,null,null,"LTL","LIT LITEWSKI HISTORYCZNY"]
[null,null,null,null,null,null,null,null,null,null,null,null,null,null,null,null,null,"LVL","ŁAT ŁOTEWSKI HISTORYCZNY"]
[null,null,null,null,null,null,null,null,null,null,null,null,null,null,null,null,null,"LYD","DINAR LIBIJSKI"]
[null,null,null,null,null,null,null,null,null,null,null,null,null,null,null,null,null,"MAD","DIRHAM MAROKAŃSKI"]
[null,null,null,null,null,null,null,null,null,null,null,null,null,null,null,null,null,"MDL","LEJ MOŁDAWII"]
[null,null,null,null,null,null,null,null,null,null,null,null,null,null,null,null,null,"MGA","ARIARY"]
[null,null,null,null,null,null,null,null,null,null,null,null,null,null,null,null,null,"MKD","DENAR"]
[null,null,null,null,null,null,null,null,null,null,null,null,null,null,null,null,null,"MMK","KYAT"]
[null,null,null,null,null,null,null,null,null,null,null,null,null,null,null,null,null,"MNT","TUGRIK"]
[null,null,null,null,null,null,null,null,null,null,null,null,null,null,null,null,null,"MOP","PATACA"]
[null,null,null,null,null,null,null,null,null,null,null,null,null,null,null,null,null,"MRO","OUGUIYA HISTORYCZNA"]
[null,null,null,null,null,null,null,null,null,null,null,null,null,null,null,null,null,"MRU","OUGUIYA"]
[null,null,null,null,null,null,null,null,null,null,null,null,null,null,null,null,null,"MTL","LIRA MALTAŃSKA HISTORYCZNA"]
[null,null,null,null,null,null,null,null,null,null,null,null,null,null,null,null,null,"MUR","RUPIA MAURITIUSU"]
[null,null,null,null,null,null,null,null,null,null,null,null,null,null,null,null,null,"MVR","RUPIA MALEDIWSKA"]
[null,null,null,null,null,null,null,null,null,null,null,null,null,null,null,null,null,"MWK","KWACHA MALAWIJSKA"]
[null,null,null,null,null,null,null,null,null,null,null,null,null,null,null,null,null,"MXN","PESO MEKSYKAŃSKIE"]
[null,null,null,null,null,null,null,null,null,null,null,null,null,null,null,null,null,"MXV","UNIDAD DE INVERSION (UDI) MEKSYKAŃSKIE"]
[null,null,null,null,null,null,null,null,null,null,null,null,null,null,null,null,null,"MYR","RINGGIT"]
[null,null,null,null,null,null,null,null,null,null,null,null,null,null,null,null,null,"MZN","METICAL"]
[null,null,null,null,null,null,null,null,null,null,null,null,null,null,null,null,null,"NAD","DOLAR NAMIBIJSKI"]
[null,null,null,null,null,null,null,null,null,null,null,null,null,null,null,null,null,"NGN","NAIRA"]
[null,null,null,null,null,null,null,null,null,null,null,null,null,null,null,null,null,"NIO","CORDOBA ORO"]
[null,null,null,null,null,null,null,null,null,null,null,null,null,null,null,null,null,"NOK","KORONA NORWESKA"]
[null,null,null,null,null,null,null,null,null,null,null,null,null,null,null,null,null,"NPR","RUPIA NEPALSKA"]
[null,null,null,null,null,null,null,null,null,null,null,null,null,null,null,null,null,"NZD","DOLAR NOWOZELANDZKI"]
[null,null,null,null,null,null,null,null,null,null,null,null,null,null,null,null,null,"OMR","RIAL OMAŃSKI"]
[null,null,null,null,null,null,null,null,null,null,null,null,null,null,null,null,null,"PAB","BALBOA"]
[null,null,null,null,null,null,null,null,null,null,null,null,null,null,null,null,null,"PEN","SOL"]
[null,null,null,null,null,null,null,null,null,null,null,null,null,null,null,null,null,"PGK","KINA"]
[null,null,null,null,null,null,null,null,null,null,null,null,null,null,null,null,null,"PHP","PESO FILIPIŃSKIE"]
[null,null,null,null,null,null,null,null,null,null,null,null,null,null,null,null,null,"PKR","RUPIA PAKISTAŃSKA"]
[null,null,null,null,null,null,null,null,null,null,null,null,null,null,null,null,null,"PYG","GUARANI"]
[null,null,null,null,null,null,null,null,null,null,null,null,null,null,null,null,null,"QAR","RIAL KATARSKI"]
[null,null,null,null,null,null,null,null,null,null,null,null,null,null,null,null,null,"RON","LEJ RUMUŃSKI"]
[null,null,null,null,null,null,null,null,null,null,null,null,null,null,null,null,null,"RSD","DINAR SERBSKI"]
[null,null,null,null,null,null,null,null,null,null,null,null,null,null,null,null,null,"RUB","RUBEL ROSYJSKI"]
[null,null,null,null,null,null,null,null,null,null,null,null,null,null,null,null,null,"RWF","FRANK RWANDYJSKI"]
[null,null,null,null,null,null,null,null,null,null,null,null,null,null,null,null,null,"SAR","RIAL SAUDYJSKI"]
[null,null,null,null,null,null,null,null,null,null,null,null,null,null,null,null,null,"SBD","DOLAR WYSP SALOMONA"]
[null,null,null,null,null,null,null,null,null,null,null,null,null,null,null,null,null,"SCR","RUPIA SESZELSKA"]
[null,null,null,null,null,null,null,null,null,null,null,null,null,null,null,null,null,"SDG","FUNT SUDAŃSKI"]
[null,null,null,null,null,null,null,null,null,null,null,null,null,null,null,null,null,"SEK","KORONA SZWEDZKA"]
[null,null,null,null,null,null,null,null,null,null,null,null,null,null,null,null,null,"SGD","DOLAR SINGAPURSKI"]
[null,null,null,null,null,null,null,null,null,null,null,null,null,null,null,null,null,"SHP","FUNT ŚWIĘTEJ HELENY (ŚWIĘTA HELENA I WYSPA WNIEBOWSTĄPIENIA)"]
[null,null,null,null,null,null,null,null,null,null,null,null,null,null,null,null,null,"SLL","LEONE"]
[null,null,null,null,null,null,null,null,null,null,null,null,null,null,null,null,null,"SOS","SZYLING SOMALIJSKI"]
[null,null,null,null,null,null,null,null,null,null,null,null,null,null,null,null,null,"SRD","DOLAR SURINAMSKI"]
[null,null,null,null,null,null,null,null,null,null,null,null,null,null,null,null,null,"SSP","FUNT POŁUDNIOWOSUDAŃSKI"]
[null,null,null,null,null,null,null,null,null,null,null,null,null,null,null,null,null,"STD","DOBRA HISTORYCZNA"]
[null,null,null,null,null,null,null,null,null,null,null,null,null,null,null,null,null,"STN","DOBRA"]
[null,null,null,null,null,null,null,null,null,null,null,null,null,null,null,null,null,"SVC","COLON SALWADORSKI (SV1)"]
[null,null,null,null,null,null,null,null,null,null,null,null,null,null,null,null,null,"SYP","FUNT SYRYJSKI"]
[null,null,null,null,null,null,null,null,null,null,null,null,null,null,null,null,null,"SZL","LILANGENI"]
[null,null,null,null,null,null,null,null,null,null,null,null,null,null,null,null,null,"THB","BAT"]
[null,null,null,null,null,null,null,null,null,null,null,null,null,null,null,null,null,"TJS","SOMONI"]
[null,null,null,null,null,null,null,null,null,null,null,null,null,null,null,null,null,"TMT","MANAT TURKMEŃSKI"]
[null,null,null,null,null,null,null,null,null,null,null,null,null,null,null,null,null,"TND","DINAR TUNEZYJSKI"]
[null,null,null,null,null,null,null,null,null,null,null,null,null,null,null,null,null,"TOP","PAANGA"]
[null,null,null,null,null,null,null,null,null,null,null,null,null,null,null,null,null,"TRY","LIRA TURECKA"]
[null,null,null,null,null,null,null,null,null,null,null,null,null,null,null,null,null,"TTD","DOLAR TRYNIDADU I TOBAGO"]
[null,null,null,null,null,null,null,null,null,null,null,null,null,null,null,null,null,"TWD","NOWY DOLAR TAJWAŃSKI"]
[null,null,null,null,null,null,null,null,null,null,null,null,null,null,null,null,null,"TZS","SZYLING TANZAŃSKI"]
[null,null,null,null,null,null,null,null,null,null,null,null,null,null,null,null,null,"UAH","HRYWNA"]
[null,null,null,null,null,null,null,null,null,null,null,null,null,null,null,null,null,"UGX","SZYLING UGANDYJSKI"]
[null,null,null,null,null,null,null,null,null,null,null,null,null,null,null,null,null,"USN","DOLAR AMERYKAŃSKI (NEXT DAY)"]
[null,null,null,null,null,null,null,null,null,null,null,null,null,null,null,null,null,"USS","DOLAR AMERYKAŃSKI (SAME DAY) HISTORYCZNY"]
[null,null,null,null,null,null,null,null,null,null,null,null,null,null,null,null,null,"UYI","PESO EN UNIDADES INDEXADAS URUGWAJSKIE"]
[null,null,null,null,null,null,null,null,null,null,null,null,null,null,null,null,null,"UYU","PESO URUGWAJSKIE"]
[null,null,null,null,null,null,null,null,null,null,null,null,null,null,null,null,null,"UYW","UNIDAD PERVISIONAL URUGWAJSKIE"]
[null,null,null,null,null,null,null,null,null,null,null,null,null,null,null,null,null,"UZS","SUM"]
[null,null,null,null,null,null,null,null,null,null,null,null,null,null,null,null,null,"VEF","BOLIWAR HISTORYCZNY"]
[null,null,null,null,null,null,null,null,null,null,null,null,null,null,null,null,null,"VES","BOLIWAR SOBERANO "]
[null,null,null,null,null,null,null,null,null,null,null,null,null,null,null,null,null,"VND","DONG"]
[null,null,null,null,null,null,null,null,null,null,null,null,null,null,null,null,null,"VUV","VATU"]
[null,null,null,null,null,null,null,null,null,null,null,null,null,null,null,null,null,"WST","TALA"]
[null,null,null,null,null,null,null,null,null,null,null,null,null,null,null,null,null,"XAF","FRANK CFA (BEAC)"]
[null,null,null,null,null,null,null,null,null,null,null,null,null,null,null,null,null,"XAG","SREBRO"]
[null,null,null,null,null,null,null,null,null,null,null,null,null,null,null,null,null,"XAU","ZŁOTO"]
[null,null,null,null,null,null,null,null,null,null,null,null,null,null,null,null,null,"XBA","BOND MARKETS UNIT EUROPEAN COMPOSITE UNIT (EURCO)"]
[null,null,null,null,null,null,null,null,null,null,null,null,null,null,null,null,null,"XBB","BOND MARKETS UNIT EUROPEAN MONETARY UNIT (E.M.U.-6)"]
[null,null,null,null,null,null,null,null,null,null,null,null,null,null,null,null,null,"XBC","BOND MARKETS UNIT EUROPEAN UNIT OF ACCOUNT 9 (E.U.A.-9)"]
[null,null,null,null,null,null,null,null,null,null,null,null,null,null,null,null,null,"XBD","BOND MARKETS UNIT EUROPEAN UNIT OF ACCOUNT 17 (E.U.A.-17)"]
[null,null,null,null,null,null,null,null,null,null,null,null,null,null,null,null,null,"XCD","DOLAR WSCHODNIO­KARAIBSKI"]
[null,null,null,null,null,null,null,null,null,null,null,null,null,null,null,null,null,"XDR","SDR MIĘDZYNARODOWY FUNDUSZ WALUTOWY"]
[null,null,null,null,null,null,null,null,null,null,null,null,null,null,null,null,null,"XFU","UIC-FRANC HISTORYCZNY"]
[null,null,null,null,null,null,null,null,null,null,null,null,null,null,null,null,null,"XOF","FRANK CFA (BCEAO)"]
[null,null,null,null,null,null,null,null,null,null,null,null,null,null,null,null,null,"XPD","PALLAD"]
[null,null,null,null,null,null,null,null,null,null,null,null,null,null,null,null,null,"XPF","FRANK CFP"]
[null,null,null,null,null,null,null,null,null,null,null,null,null,null,null,null,null,"XPT","PLATYNA"]
[null,null,null,null,null,null,null,null,null,null,null,null,null,null,null,null,null,"XSU","SUCRE SISTEMA UNITARIO DE COMPENSACION REGIONAL DE PAGOS SUCRE"]
[null,null,null,null,null,null,null,null,null,null,null,null,null,null,null,null,null,"XUA","ADB UNIT OF ACCOUNT MEMBER COUNTRIES OF THE AFRICAN DEVELOPMENT BANK GROUP"]
[null,null,null,null,null,null,null,null,null,null,null,null,null,null,null,null,null,"XXX","BRAK WALUTY"]
[null,null,null,null,null,null,null,null,null,null,null,null,null,null,null,null,null,"YER","RIAL JEMEŃSKI"]
[null,null,null,null,null,null,null,null,null,null,null,null,null,null,null,null,null,"ZAR","RAND"]
[null,null,null,null,null,null,null,null,null,null,null,null,null,null,null,null,null,"ZMW","KWACHA ZAMBIJSKA"]
[null,null,null,null,null,null,null,null,null,null,null,null,null,null,null,null,null,"ZWL","DOLAR ZIMBABWE"]